{"text_format":"1","workbook":"xlsx","n_sheets":4,"sheets":["はじめに","施設情報","入力用リスト","請求書・領収書兼提供証明書"],"not_rendered":{"charts":0,"images":12,"macros":1,"external_links":0,"defined_names":1,"comments":2,"pivot_tables":0},"unopened":[],"bounds":{"document_bytes":16777216,"sheet_cells":100000,"rows_first":2000,"rows_last":500,"rows_between":2000,"halvings":0,"cell_chars":16384,"cell_head_chars":4096},"cells_cut":0,"cells_raw":0,"read":"whole","date_system":"1900"}

{"sheet":"はじめに","index":0,"n_rows":117,"n_cols":2,"rows_kept":117,"cut":false,"hidden":false,"merged":[]}
["①","このエクセルファイルは、幼児教育・保育の無償化における施設等利用給付費のうち、"]
[null,"保護者の方へ償還払いにて、利用料（保育料）を返金する事務に使用します。"]
[]
["②","在籍する施設のみでの利用料が印字されること、四半期ごとの利用料が印字されることから、"]
[null,"定期的に在籍施設でのみ、保育の提供を受ける方の集計に適しています。"]
[null,"（○：幼稚園や認定こども園における預かり保育の提供、認可外保育施設における保育の提供など）"]
[null,"（△：保育所や認定こども園における一時預かり事業(一時保育)の提供、複数施設を利用する保護者の方への証明など）"]
[]
["③","施設情報タブを選択し、貴施設の情報を記入してください。"]
[]
[]
[]
[]
[]
[]
[]
[]
[]
["④","入力用リストタブを選択し、貴施設を利用した保護者（児童）の情報を記載してください。"]
[]
[]
[]
[]
[]
[]
[]
[]
[]
["⑤","入力用リストタブの続きに、保育の提供情報を記載してください。(四半期のうち１月目)"]
[]
[]
[]
[]
[]
[]
[]
[]
[]
[]
[]
["⑥","入力用リストタブの続きに、保育の提供情報を記載してください。(四半期のうち２月、３月目)"]
[]
[]
[]
[]
[]
[]
["⑦","請求書・領収書兼提供証明書タブをご確認ください。（請求書）"]
[]
[]
[]
[]
[]
[]
[]
[]
[]
[]
[]
[]
[]
[]
[]
[]
[]
[]
[]
[]
[]
[]
[]
[]
[]
[]
[]
[]
[]
[]
[]
[]
[]
[]
[]
[]
["⑧","請求書・領収書兼提供証明書タブをご確認ください。（領収書兼提供証明書）"]
[]
[]
[]
[]
[]
[]
[]
[]
[]
[]
[]
[]
[]
[]
[]
[]
[]
[]
[]
[]
[]
[]
[]
[]
[]
[]
[]
[]
[]
[]
[]
["⑨","請求書・領収書兼提供証明書タブをご確認ください。（印刷）"]

{"sheet":"施設情報","index":1,"n_rows":8,"n_cols":10,"rows_kept":8,"cut":false,"hidden":false,"merged":[[5,9,5,10],[5,11,5,15],[6,9,6,10],[6,11,6,15],[7,9,7,10],[7,11,7,15],[3,9,3,10],[3,11,3,15],[4,9,4,10],[4,11,4,15],[0,0,0,6],[0,9,0,15],[1,9,1,10],[1,11,1,15],[2,9,2,10],[2,11,2,15],[7,0,7,1],[4,0,4,1],[5,0,5,1],[1,2,1,6],[2,2,2,6],[3,2,3,6],[4,2,4,6],[1,0,1,1],[2,0,2,1],[3,0,3,1],[6,0,6,1],[5,2,5,6],[6,2,6,6],[7,2,7,6]]}
["預かり保育事業に対する証明等を行う施設様",null,null,null,null,null,null,null,null,"預かり保育事業以外に対する証明等を行う施設様"]
["施設区分",null,"認定こども園",null,null,null,null,null,null,"施設区分"]
["設置者名称",null,"学校法人　こども家庭学園",null,null,null,null,null,null,"設置者名称"]
["所在地",null,"神戸市中央区加納町6－5－1",null,null,null,null,null,null,"所在地"]
["郵便番号",null,"650-8570",null,null,null,null,null,null,"郵便番号"]
["電話番号",null,"078-331-8181",null,null,null,null,null,null,"電話番号"]
["代表者職氏名",null,"給付　一郎",null,null,null,null,null,null,"代表者職氏名"]
["施設名称",null,"幼保事業課認定こども園",null,null,null,null,null,null,"施設名称"]

{"sheet":"入力用リスト","index":2,"n_rows":303,"n_cols":36,"rows_kept":303,"cut":false,"hidden":false,"merged":[[0,28,0,35],[0,1,0,5],[0,6,0,10],[0,11,1,11],[0,0,1,0],[0,12,0,19],[0,20,0,27]]}
["ＮＯ","認定保護者",null,null,null,null,"認定子ども",null,null,null,null,"対象年","利用月①（4-6月,7-9月,10-12月,1-3月の範囲内で各月について記入ください）",null,null,null,null,null,null,null,"利用月②（4-6月,7-9月,10-12月,1-3月の範囲内で各月について記入ください）",null,null,null,null,null,null,null,"利用月③（4-6月,7-9月,10-12月,1-3月の範囲内で各月について記入ください）"]
[null,"氏名","氏名フリガナ","生年月日","続柄","住所","氏名","氏名フリガナ","認定種別","認定番号","生年月日",null,"対象月","提供期間（開始日）","提供期間（終了日）","提供時間（開始）","提供時間（終了）","提供日数","利用料（保育料）（無償化対象）","その他経費（無償化対象外）","対象月","提供期間（開始日）","提供期間（終了日）","提供時間（開始）","提供時間（終了）","提供日数","利用料（保育料）（無償化対象）","その他経費（無償化対象外）","対象月","提供期間（開始日）","提供期間（終了日）","提供時間（開始）","提供時間（終了）","提供日数","利用料（保育料）（無償化対象）","その他経費（無償化対象外）"]
[0,"神戸　太郎","コウベ　タロウ","1990年1月1日","父","神戸市中央区○○町1－1－1","神戸　次郎","コウベ　ジロウ","第2号",91111111,"2017年2月1日",2022,4,1,30,"14時","17時",10,6000,500,{"$f":"IF(M3<>\"\",M3+1,\"\")","v":5},null,null,null,null,null,null,null,{"$f":"IF(M3<>\"\",M3+2,\"\")","v":6},1,30,"14時","16時半",12,7200,600]
[1,"三宮　花子","サンノミヤ　ハナコ","1985年8月1日","母","神戸市中央区××町1－2－3","三宮　時子","サンノミヤ　トキコ","第2号",91234567,"2018年6月1日",2022,4,1,30,"14時","17時",8,4800,400,{"$f":"IF(M4<>\"\",M4+1,\"\")","v":5},1,31,"14時","17時",10,6000,500,{"$f":"IF(M4<>\"\",M4+2,\"\")","v":6},1,30,"14時","17時",7,4200,350]
[2,"元町　太郎","モトマチ　タロウ","1990年4月1日","父","神戸市中央区△△町4－5－6","元町　時子","モトマチ　トキコ","第2号",98765432,"2017年5月1日",2022,4,null,null,null,null,null,null,null,5,7,31,"14時","18時",5,3000,250,6,1,20,"14時","18時",4,2400,200]
[3,"兵庫　花子","ヒョウゴ　ハナコ","1985年11月1日","母","神戸市兵庫区□□町7－8－9","兵庫　次郎","ヒョウゴ　ジロウ","第3号",90000000,"2018年9月1日",2022,4,1,30,"14時","16時半",10,6000,500,5,1,31,"14時","16時半",10,6000,500,6,1,30,"14時","16時半",12,7200,600]
[4,null,null,null,null,null,null,null,null,null,null,null,null,null,null,null,null,null,null,null,"",null,null,null,null,null,null,null,""]
[5,null,null,null,null,null,null,null,null,null,null,null,null,null,null,null,null,null,null,null,"",null,null,null,null,null,null,null,""]
[6,null,null,null,null,null,null,null,null,null,null,null,null,null,null,null,null,null,null,null,"",null,null,null,null,null,null,null,""]
[7,null,null,null,null,null,null,null,null,null,null,null,null,null,null,null,null,null,null,null,"",null,null,null,null,null,null,null,""]
[8,null,null,null,null,null,null,null,null,null,null,null,null,null,null,null,null,null,null,null,"",null,null,null,null,null,null,null,""]
[9,null,null,null,null,null,null,null,null,null,null,null,null,null,null,null,null,null,null,null,"",null,null,null,null,null,null,null,""]
[10,null,null,null,null,null,null,null,null,null,null,null,null,null,null,null,null,null,null,null,"",null,null,null,null,null,null,null,""]
[11,null,null,null,null,null,null,null,null,null,null,null,null,null,null,null,null,null,null,null,"",null,null,null,null,null,null,null,""]
[12,null,null,null,null,null,null,null,null,null,null,null,null,null,null,null,null,null,null,null,"",null,null,null,null,null,null,null,""]
[13,null,null,null,null,null,null,null,null,null,null,null,null,null,null,null,null,null,null,null,"",null,null,null,null,null,null,null,""]
[14,null,null,null,null,null,null,null,null,null,null,null,null,null,null,null,null,null,null,null,"",null,null,null,null,null,null,null,""]
[15,null,null,null,null,null,null,null,null,null,null,null,null,null,null,null,null,null,null,null,"",null,null,null,null,null,null,null,""]
[16,null,null,null,null,null,null,null,null,null,null,null,null,null,null,null,null,null,null,null,"",null,null,null,null,null,null,null,""]
[17,null,null,null,null,null,null,null,null,null,null,null,null,null,null,null,null,null,null,null,"",null,null,null,null,null,null,null,""]
[18,null,null,null,null,null,null,null,null,null,null,null,null,null,null,null,null,null,null,null,"",null,null,null,null,null,null,null,""]
[19,null,null,null,null,null,null,null,null,null,null,null,null,null,null,null,null,null,null,null,"",null,null,null,null,null,null,null,""]
[20,null,null,null,null,null,null,null,null,null,null,null,null,null,null,null,null,null,null,null,"",null,null,null,null,null,null,null,""]
[21,null,null,null,null,null,null,null,null,null,null,null,null,null,null,null,null,null,null,null,"",null,null,null,null,null,null,null,""]
[22,null,null,null,null,null,null,null,null,null,null,null,null,null,null,null,null,null,null,null,"",null,null,null,null,null,null,null,""]
[23,null,null,null,null,null,null,null,null,null,null,null,null,null,null,null,null,null,null,null,"",null,null,null,null,null,null,null,""]
[24,null,null,null,null,null,null,null,null,null,null,null,null,null,null,null,null,null,null,null,"",null,null,null,null,null,null,null,""]
[25,null,null,null,null,null,null,null,null,null,null,null,null,null,null,null,null,null,null,null,"",null,null,null,null,null,null,null,""]
[26,null,null,null,null,null,null,null,null,null,null,null,null,null,null,null,null,null,null,null,"",null,null,null,null,null,null,null,""]
[27,null,null,null,null,null,null,null,null,null,null,null,null,null,null,null,null,null,null,null,"",null,null,null,null,null,null,null,""]
[28,null,null,null,null,null,null,null,null,null,null,null,null,null,null,null,null,null,null,null,"",null,null,null,null,null,null,null,""]
[29,null,null,null,null,null,null,null,null,null,null,null,null,null,null,null,null,null,null,null,"",null,null,null,null,null,null,null,""]
[30,null,null,null,null,null,null,null,null,null,null,null,null,null,null,null,null,null,null,null,"",null,null,null,null,null,null,null,""]
[31,null,null,null,null,null,null,null,null,null,null,null,null,null,null,null,null,null,null,null,"",null,null,null,null,null,null,null,""]
[32,null,null,null,null,null,null,null,null,null,null,null,null,null,null,null,null,null,null,null,"",null,null,null,null,null,null,null,""]
[33,null,null,null,null,null,null,null,null,null,null,null,null,null,null,null,null,null,null,null,"",null,null,null,null,null,null,null,""]
[34,null,null,null,null,null,null,null,null,null,null,null,null,null,null,null,null,null,null,null,"",null,null,null,null,null,null,null,""]
[35,null,null,null,null,null,null,null,null,null,null,null,null,null,null,null,null,null,null,null,"",null,null,null,null,null,null,null,""]
[36,null,null,null,null,null,null,null,null,null,null,null,null,null,null,null,null,null,null,null,"",null,null,null,null,null,null,null,""]
[37,null,null,null,null,null,null,null,null,null,null,null,null,null,null,null,null,null,null,null,"",null,null,null,null,null,null,null,""]
[38,null,null,null,null,null,null,null,null,null,null,null,null,null,null,null,null,null,null,null,"",null,null,null,null,null,null,null,""]
[39,null,null,null,null,null,null,null,null,null,null,null,null,null,null,null,null,null,null,null,"",null,null,null,null,null,null,null,""]
[40,null,null,null,null,null,null,null,null,null,null,null,null,null,null,null,null,null,null,null,"",null,null,null,null,null,null,null,""]
[41,null,null,null,null,null,null,null,null,null,null,null,null,null,null,null,null,null,null,null,"",null,null,null,null,null,null,null,""]
[42,null,null,null,null,null,null,null,null,null,null,null,null,null,null,null,null,null,null,null,"",null,null,null,null,null,null,null,""]
[43,null,null,null,null,null,null,null,null,null,null,null,null,null,null,null,null,null,null,null,"",null,null,null,null,null,null,null,""]
[44,null,null,null,null,null,null,null,null,null,null,null,null,null,null,null,null,null,null,null,"",null,null,null,null,null,null,null,""]
[45,null,null,null,null,null,null,null,null,null,null,null,null,null,null,null,null,null,null,null,"",null,null,null,null,null,null,null,""]
[46,null,null,null,null,null,null,null,null,null,null,null,null,null,null,null,null,null,null,null,"",null,null,null,null,null,null,null,""]
[47,null,null,null,null,null,null,null,null,null,null,null,null,null,null,null,null,null,null,null,"",null,null,null,null,null,null,null,""]
[48,null,null,null,null,null,null,null,null,null,null,null,null,null,null,null,null,null,null,null,"",null,null,null,null,null,null,null,""]
[49,null,null,null,null,null,null,null,null,null,null,null,null,null,null,null,null,null,null,null,"",null,null,null,null,null,null,null,""]
[50,null,null,null,null,null,null,null,null,null,null,null,null,null,null,null,null,null,null,null,"",null,null,null,null,null,null,null,""]
[51,null,null,null,null,null,null,null,null,null,null,null,null,null,null,null,null,null,null,null,"",null,null,null,null,null,null,null,""]
[52,null,null,null,null,null,null,null,null,null,null,null,null,null,null,null,null,null,null,null,"",null,null,null,null,null,null,null,""]
[53,null,null,null,null,null,null,null,null,null,null,null,null,null,null,null,null,null,null,null,"",null,null,null,null,null,null,null,""]
[54,null,null,null,null,null,null,null,null,null,null,null,null,null,null,null,null,null,null,null,"",null,null,null,null,null,null,null,""]
[55,null,null,null,null,null,null,null,null,null,null,null,null,null,null,null,null,null,null,null,"",null,null,null,null,null,null,null,""]
[56,null,null,null,null,null,null,null,null,null,null,null,null,null,null,null,null,null,null,null,"",null,null,null,null,null,null,null,""]
[57,null,null,null,null,null,null,null,null,null,null,null,null,null,null,null,null,null,null,null,"",null,null,null,null,null,null,null,""]
[58,null,null,null,null,null,null,null,null,null,null,null,null,null,null,null,null,null,null,null,"",null,null,null,null,null,null,null,""]
[59,null,null,null,null,null,null,null,null,null,null,null,null,null,null,null,null,null,null,null,"",null,null,null,null,null,null,null,""]
[60,null,null,null,null,null,null,null,null,null,null,null,null,null,null,null,null,null,null,null,"",null,null,null,null,null,null,null,""]
[61,null,null,null,null,null,null,null,null,null,null,null,null,null,null,null,null,null,null,null,"",null,null,null,null,null,null,null,""]
[62,null,null,null,null,null,null,null,null,null,null,null,null,null,null,null,null,null,null,null,"",null,null,null,null,null,null,null,""]
[63,null,null,null,null,null,null,null,null,null,null,null,null,null,null,null,null,null,null,null,"",null,null,null,null,null,null,null,""]
[64,null,null,null,null,null,null,null,null,null,null,null,null,null,null,null,null,null,null,null,"",null,null,null,null,null,null,null,""]
[65,null,null,null,null,null,null,null,null,null,null,null,null,null,null,null,null,null,null,null,{"$f":"IF(M68<>\"\",M68+1,\"\")","v":""},null,null,null,null,null,null,null,{"$f":"IF(M68<>\"\",M68+2,\"\")","v":""}]
[66,null,null,null,null,null,null,null,null,null,null,null,null,null,null,null,null,null,null,null,"",null,null,null,null,null,null,null,""]
[67,null,null,null,null,null,null,null,null,null,null,null,null,null,null,null,null,null,null,null,"",null,null,null,null,null,null,null,""]
[68,null,null,null,null,null,null,null,null,null,null,null,null,null,null,null,null,null,null,null,"",null,null,null,null,null,null,null,""]
[69,null,null,null,null,null,null,null,null,null,null,null,null,null,null,null,null,null,null,null,"",null,null,null,null,null,null,null,""]
[70,null,null,null,null,null,null,null,null,null,null,null,null,null,null,null,null,null,null,null,"",null,null,null,null,null,null,null,""]
[71,null,null,null,null,null,null,null,null,null,null,null,null,null,null,null,null,null,null,null,"",null,null,null,null,null,null,null,""]
[72,null,null,null,null,null,null,null,null,null,null,null,null,null,null,null,null,null,null,null,"",null,null,null,null,null,null,null,""]
[73,null,null,null,null,null,null,null,null,null,null,null,null,null,null,null,null,null,null,null,"",null,null,null,null,null,null,null,""]
[74,null,null,null,null,null,null,null,null,null,null,null,null,null,null,null,null,null,null,null,"",null,null,null,null,null,null,null,""]
[75,null,null,null,null,null,null,null,null,null,null,null,null,null,null,null,null,null,null,null,"",null,null,null,null,null,null,null,""]
[76,null,null,null,null,null,null,null,null,null,null,null,null,null,null,null,null,null,null,null,"",null,null,null,null,null,null,null,""]
[77,null,null,null,null,null,null,null,null,null,null,null,null,null,null,null,null,null,null,null,"",null,null,null,null,null,null,null,""]
[78,null,null,null,null,null,null,null,null,null,null,null,null,null,null,null,null,null,null,null,"",null,null,null,null,null,null,null,""]
[79,null,null,null,null,null,null,null,null,null,null,null,null,null,null,null,null,null,null,null,"",null,null,null,null,null,null,null,""]
[80,null,null,null,null,null,null,null,null,null,null,null,null,null,null,null,null,null,null,null,"",null,null,null,null,null,null,null,""]
[81,null,null,null,null,null,null,null,null,null,null,null,null,null,null,null,null,null,null,null,"",null,null,null,null,null,null,null,""]
[82,null,null,null,null,null,null,null,null,null,null,null,null,null,null,null,null,null,null,null,"",null,null,null,null,null,null,null,""]
[83,null,null,null,null,null,null,null,null,null,null,null,null,null,null,null,null,null,null,null,"",null,null,null,null,null,null,null,""]
[84,null,null,null,null,null,null,null,null,null,null,null,null,null,null,null,null,null,null,null,"",null,null,null,null,null,null,null,""]
[85,null,null,null,null,null,null,null,null,null,null,null,null,null,null,null,null,null,null,null,"",null,null,null,null,null,null,null,""]
[86,null,null,null,null,null,null,null,null,null,null,null,null,null,null,null,null,null,null,null,"",null,null,null,null,null,null,null,""]
[87,null,null,null,null,null,null,null,null,null,null,null,null,null,null,null,null,null,null,null,"",null,null,null,null,null,null,null,""]
[88,null,null,null,null,null,null,null,null,null,null,null,null,null,null,null,null,null,null,null,"",null,null,null,null,null,null,null,""]
[89,null,null,null,null,null,null,null,null,null,null,null,null,null,null,null,null,null,null,null,"",null,null,null,null,null,null,null,""]
[90,null,null,null,null,null,null,null,null,null,null,null,null,null,null,null,null,null,null,null,"",null,null,null,null,null,null,null,""]
[91,null,null,null,null,null,null,null,null,null,null,null,null,null,null,null,null,null,null,null,"",null,null,null,null,null,null,null,""]
[92,null,null,null,null,null,null,null,null,null,null,null,null,null,null,null,null,null,null,null,"",null,null,null,null,null,null,null,""]
[93,null,null,null,null,null,null,null,null,null,null,null,null,null,null,null,null,null,null,null,"",null,null,null,null,null,null,null,""]
[94,null,null,null,null,null,null,null,null,null,null,null,null,null,null,null,null,null,null,null,"",null,null,null,null,null,null,null,""]
[95,null,null,null,null,null,null,null,null,null,null,null,null,null,null,null,null,null,null,null,"",null,null,null,null,null,null,null,""]
[96,null,null,null,null,null,null,null,null,null,null,null,null,null,null,null,null,null,null,null,"",null,null,null,null,null,null,null,""]
[97,null,null,null,null,null,null,null,null,null,null,null,null,null,null,null,null,null,null,null,"",null,null,null,null,null,null,null,""]
[98,null,null,null,null,null,null,null,null,null,null,null,null,null,null,null,null,null,null,null,"",null,null,null,null,null,null,null,""]
[99,null,null,null,null,null,null,null,null,null,null,null,null,null,null,null,null,null,null,null,"",null,null,null,null,null,null,null,""]
[100,null,null,null,null,null,null,null,null,null,null,null,null,null,null,null,null,null,null,null,"",null,null,null,null,null,null,null,""]
[101,null,null,null,null,null,null,null,null,null,null,null,null,null,null,null,null,null,null,null,"",null,null,null,null,null,null,null,""]
[102,null,null,null,null,null,null,null,null,null,null,null,null,null,null,null,null,null,null,null,"",null,null,null,null,null,null,null,""]
[103,null,null,null,null,null,null,null,null,null,null,null,null,null,null,null,null,null,null,null,"",null,null,null,null,null,null,null,""]
[104,null,null,null,null,null,null,null,null,null,null,null,null,null,null,null,null,null,null,null,"",null,null,null,null,null,null,null,""]
[105,null,null,null,null,null,null,null,null,null,null,null,null,null,null,null,null,null,null,null,"",null,null,null,null,null,null,null,""]
[106,null,null,null,null,null,null,null,null,null,null,null,null,null,null,null,null,null,null,null,"",null,null,null,null,null,null,null,""]
[107,null,null,null,null,null,null,null,null,null,null,null,null,null,null,null,null,null,null,null,"",null,null,null,null,null,null,null,""]
[108,null,null,null,null,null,null,null,null,null,null,null,null,null,null,null,null,null,null,null,"",null,null,null,null,null,null,null,""]
[109,null,null,null,null,null,null,null,null,null,null,null,null,null,null,null,null,null,null,null,"",null,null,null,null,null,null,null,""]
[110,null,null,null,null,null,null,null,null,null,null,null,null,null,null,null,null,null,null,null,"",null,null,null,null,null,null,null,""]
[111,null,null,null,null,null,null,null,null,null,null,null,null,null,null,null,null,null,null,null,"",null,null,null,null,null,null,null,""]
[112,null,null,null,null,null,null,null,null,null,null,null,null,null,null,null,null,null,null,null,"",null,null,null,null,null,null,null,""]
[113,null,null,null,null,null,null,null,null,null,null,null,null,null,null,null,null,null,null,null,"",null,null,null,null,null,null,null,""]
[114,null,null,null,null,null,null,null,null,null,null,null,null,null,null,null,null,null,null,null,"",null,null,null,null,null,null,null,""]
[115,null,null,null,null,null,null,null,null,null,null,null,null,null,null,null,null,null,null,null,"",null,null,null,null,null,null,null,""]
[116,null,null,null,null,null,null,null,null,null,null,null,null,null,null,null,null,null,null,null,"",null,null,null,null,null,null,null,""]
[117,null,null,null,null,null,null,null,null,null,null,null,null,null,null,null,null,null,null,null,"",null,null,null,null,null,null,null,""]
[118,null,null,null,null,null,null,null,null,null,null,null,null,null,null,null,null,null,null,null,"",null,null,null,null,null,null,null,""]
[119,null,null,null,null,null,null,null,null,null,null,null,null,null,null,null,null,null,null,null,"",null,null,null,null,null,null,null,""]
[120,null,null,null,null,null,null,null,null,null,null,null,null,null,null,null,null,null,null,null,"",null,null,null,null,null,null,null,""]
[121,null,null,null,null,null,null,null,null,null,null,null,null,null,null,null,null,null,null,null,"",null,null,null,null,null,null,null,""]
[122,null,null,null,null,null,null,null,null,null,null,null,null,null,null,null,null,null,null,null,"",null,null,null,null,null,null,null,""]
[123,null,null,null,null,null,null,null,null,null,null,null,null,null,null,null,null,null,null,null,"",null,null,null,null,null,null,null,""]
[124,null,null,null,null,null,null,null,null,null,null,null,null,null,null,null,null,null,null,null,"",null,null,null,null,null,null,null,""]
[125,null,null,null,null,null,null,null,null,null,null,null,null,null,null,null,null,null,null,null,"",null,null,null,null,null,null,null,""]
[126,null,null,null,null,null,null,null,null,null,null,null,null,null,null,null,null,null,null,null,"",null,null,null,null,null,null,null,""]
[127,null,null,null,null,null,null,null,null,null,null,null,null,null,null,null,null,null,null,null,"",null,null,null,null,null,null,null,""]
[128,null,null,null,null,null,null,null,null,null,null,null,null,null,null,null,null,null,null,null,"",null,null,null,null,null,null,null,""]
[129,null,null,null,null,null,null,null,null,null,null,null,null,null,null,null,null,null,null,null,{"$f":"IF(M132<>\"\",M132+1,\"\")","v":""},null,null,null,null,null,null,null,{"$f":"IF(M132<>\"\",M132+2,\"\")","v":""}]
[130,null,null,null,null,null,null,null,null,null,null,null,null,null,null,null,null,null,null,null,"",null,null,null,null,null,null,null,""]
[131,null,null,null,null,null,null,null,null,null,null,null,null,null,null,null,null,null,null,null,"",null,null,null,null,null,null,null,""]
[132,null,null,null,null,null,null,null,null,null,null,null,null,null,null,null,null,null,null,null,"",null,null,null,null,null,null,null,""]
[133,null,null,null,null,null,null,null,null,null,null,null,null,null,null,null,null,null,null,null,"",null,null,null,null,null,null,null,""]
[134,null,null,null,null,null,null,null,null,null,null,null,null,null,null,null,null,null,null,null,"",null,null,null,null,null,null,null,""]
[135,null,null,null,null,null,null,null,null,null,null,null,null,null,null,null,null,null,null,null,"",null,null,null,null,null,null,null,""]
[136,null,null,null,null,null,null,null,null,null,null,null,null,null,null,null,null,null,null,null,"",null,null,null,null,null,null,null,""]
[137,null,null,null,null,null,null,null,null,null,null,null,null,null,null,null,null,null,null,null,"",null,null,null,null,null,null,null,""]
[138,null,null,null,null,null,null,null,null,null,null,null,null,null,null,null,null,null,null,null,"",null,null,null,null,null,null,null,""]
[139,null,null,null,null,null,null,null,null,null,null,null,null,null,null,null,null,null,null,null,"",null,null,null,null,null,null,null,""]
[140,null,null,null,null,null,null,null,null,null,null,null,null,null,null,null,null,null,null,null,"",null,null,null,null,null,null,null,""]
[141,null,null,null,null,null,null,null,null,null,null,null,null,null,null,null,null,null,null,null,"",null,null,null,null,null,null,null,""]
[142,null,null,null,null,null,null,null,null,null,null,null,null,null,null,null,null,null,null,null,"",null,null,null,null,null,null,null,""]
[143,null,null,null,null,null,null,null,null,null,null,null,null,null,null,null,null,null,null,null,"",null,null,null,null,null,null,null,""]
[144,null,null,null,null,null,null,null,null,null,null,null,null,null,null,null,null,null,null,null,"",null,null,null,null,null,null,null,""]
[145,null,null,null,null,null,null,null,null,null,null,null,null,null,null,null,null,null,null,null,"",null,null,null,null,null,null,null,""]
[146,null,null,null,null,null,null,null,null,null,null,null,null,null,null,null,null,null,null,null,"",null,null,null,null,null,null,null,""]
[147,null,null,null,null,null,null,null,null,null,null,null,null,null,null,null,null,null,null,null,"",null,null,null,null,null,null,null,""]
[148,null,null,null,null,null,null,null,null,null,null,null,null,null,null,null,null,null,null,null,"",null,null,null,null,null,null,null,""]
[149,null,null,null,null,null,null,null,null,null,null,null,null,null,null,null,null,null,null,null,"",null,null,null,null,null,null,null,""]
[150,null,null,null,null,null,null,null,null,null,null,null,null,null,null,null,null,null,null,null,"",null,null,null,null,null,null,null,""]
[151,null,null,null,null,null,null,null,null,null,null,null,null,null,null,null,null,null,null,null,"",null,null,null,null,null,null,null,""]
[152,null,null,null,null,null,null,null,null,null,null,null,null,null,null,null,null,null,null,null,"",null,null,null,null,null,null,null,""]
[153,null,null,null,null,null,null,null,null,null,null,null,null,null,null,null,null,null,null,null,"",null,null,null,null,null,null,null,""]
[154,null,null,null,null,null,null,null,null,null,null,null,null,null,null,null,null,null,null,null,"",null,null,null,null,null,null,null,""]
[155,null,null,null,null,null,null,null,null,null,null,null,null,null,null,null,null,null,null,null,"",null,null,null,null,null,null,null,""]
[156,null,null,null,null,null,null,null,null,null,null,null,null,null,null,null,null,null,null,null,"",null,null,null,null,null,null,null,""]
[157,null,null,null,null,null,null,null,null,null,null,null,null,null,null,null,null,null,null,null,"",null,null,null,null,null,null,null,""]
[158,null,null,null,null,null,null,null,null,null,null,null,null,null,null,null,null,null,null,null,"",null,null,null,null,null,null,null,""]
[159,null,null,null,null,null,null,null,null,null,null,null,null,null,null,null,null,null,null,null,"",null,null,null,null,null,null,null,""]
[160,null,null,null,null,null,null,null,null,null,null,null,null,null,null,null,null,null,null,null,"",null,null,null,null,null,null,null,""]
[161,null,null,null,null,null,null,null,null,null,null,null,null,null,null,null,null,null,null,null,"",null,null,null,null,null,null,null,""]
[162,null,null,null,null,null,null,null,null,null,null,null,null,null,null,null,null,null,null,null,"",null,null,null,null,null,null,null,""]
[163,null,null,null,null,null,null,null,null,null,null,null,null,null,null,null,null,null,null,null,"",null,null,null,null,null,null,null,""]
[164,null,null,null,null,null,null,null,null,null,null,null,null,null,null,null,null,null,null,null,"",null,null,null,null,null,null,null,""]
[165,null,null,null,null,null,null,null,null,null,null,null,null,null,null,null,null,null,null,null,"",null,null,null,null,null,null,null,""]
[166,null,null,null,null,null,null,null,null,null,null,null,null,null,null,null,null,null,null,null,"",null,null,null,null,null,null,null,""]
[167,null,null,null,null,null,null,null,null,null,null,null,null,null,null,null,null,null,null,null,"",null,null,null,null,null,null,null,""]
[168,null,null,null,null,null,null,null,null,null,null,null,null,null,null,null,null,null,null,null,"",null,null,null,null,null,null,null,""]
[169,null,null,null,null,null,null,null,null,null,null,null,null,null,null,null,null,null,null,null,"",null,null,null,null,null,null,null,""]
[170,null,null,null,null,null,null,null,null,null,null,null,null,null,null,null,null,null,null,null,"",null,null,null,null,null,null,null,""]
[171,null,null,null,null,null,null,null,null,null,null,null,null,null,null,null,null,null,null,null,"",null,null,null,null,null,null,null,""]
[172,null,null,null,null,null,null,null,null,null,null,null,null,null,null,null,null,null,null,null,"",null,null,null,null,null,null,null,""]
[173,null,null,null,null,null,null,null,null,null,null,null,null,null,null,null,null,null,null,null,"",null,null,null,null,null,null,null,""]
[174,null,null,null,null,null,null,null,null,null,null,null,null,null,null,null,null,null,null,null,"",null,null,null,null,null,null,null,""]
[175,null,null,null,null,null,null,null,null,null,null,null,null,null,null,null,null,null,null,null,"",null,null,null,null,null,null,null,""]
[176,null,null,null,null,null,null,null,null,null,null,null,null,null,null,null,null,null,null,null,"",null,null,null,null,null,null,null,""]
[177,null,null,null,null,null,null,null,null,null,null,null,null,null,null,null,null,null,null,null,"",null,null,null,null,null,null,null,""]
[178,null,null,null,null,null,null,null,null,null,null,null,null,null,null,null,null,null,null,null,"",null,null,null,null,null,null,null,""]
[179,null,null,null,null,null,null,null,null,null,null,null,null,null,null,null,null,null,null,null,"",null,null,null,null,null,null,null,""]
[180,null,null,null,null,null,null,null,null,null,null,null,null,null,null,null,null,null,null,null,"",null,null,null,null,null,null,null,""]
[181,null,null,null,null,null,null,null,null,null,null,null,null,null,null,null,null,null,null,null,"",null,null,null,null,null,null,null,""]
[182,null,null,null,null,null,null,null,null,null,null,null,null,null,null,null,null,null,null,null,"",null,null,null,null,null,null,null,""]
[183,null,null,null,null,null,null,null,null,null,null,null,null,null,null,null,null,null,null,null,"",null,null,null,null,null,null,null,""]
[184,null,null,null,null,null,null,null,null,null,null,null,null,null,null,null,null,null,null,null,"",null,null,null,null,null,null,null,""]
[185,null,null,null,null,null,null,null,null,null,null,null,null,null,null,null,null,null,null,null,"",null,null,null,null,null,null,null,""]
[186,null,null,null,null,null,null,null,null,null,null,null,null,null,null,null,null,null,null,null,"",null,null,null,null,null,null,null,""]
[187,null,null,null,null,null,null,null,null,null,null,null,null,null,null,null,null,null,null,null,"",null,null,null,null,null,null,null,""]
[188,null,null,null,null,null,null,null,null,null,null,null,null,null,null,null,null,null,null,null,"",null,null,null,null,null,null,null,""]
[189,null,null,null,null,null,null,null,null,null,null,null,null,null,null,null,null,null,null,null,"",null,null,null,null,null,null,null,""]
[190,null,null,null,null,null,null,null,null,null,null,null,null,null,null,null,null,null,null,null,"",null,null,null,null,null,null,null,""]
[191,null,null,null,null,null,null,null,null,null,null,null,null,null,null,null,null,null,null,null,"",null,null,null,null,null,null,null,""]
[192,null,null,null,null,null,null,null,null,null,null,null,null,null,null,null,null,null,null,null,"",null,null,null,null,null,null,null,""]
[193,null,null,null,null,null,null,null,null,null,null,null,null,null,null,null,null,null,null,null,{"$f":"IF(M196<>\"\",M196+1,\"\")","v":""},null,null,null,null,null,null,null,{"$f":"IF(M196<>\"\",M196+2,\"\")","v":""}]
[194,null,null,null,null,null,null,null,null,null,null,null,null,null,null,null,null,null,null,null,"",null,null,null,null,null,null,null,""]
[195,null,null,null,null,null,null,null,null,null,null,null,null,null,null,null,null,null,null,null,"",null,null,null,null,null,null,null,""]
[196,null,null,null,null,null,null,null,null,null,null,null,null,null,null,null,null,null,null,null,"",null,null,null,null,null,null,null,""]
[197,null,null,null,null,null,null,null,null,null,null,null,null,null,null,null,null,null,null,null,"",null,null,null,null,null,null,null,""]
[198,null,null,null,null,null,null,null,null,null,null,null,null,null,null,null,null,null,null,null,"",null,null,null,null,null,null,null,""]
[199,null,null,null,null,null,null,null,null,null,null,null,null,null,null,null,null,null,null,null,"",null,null,null,null,null,null,null,""]
[200,null,null,null,null,null,null,null,null,null,null,null,null,null,null,null,null,null,null,null,"",null,null,null,null,null,null,null,""]
[201,null,null,null,null,null,null,null,null,null,null,null,null,null,null,null,null,null,null,null,"",null,null,null,null,null,null,null,""]
[202,null,null,null,null,null,null,null,null,null,null,null,null,null,null,null,null,null,null,null,"",null,null,null,null,null,null,null,""]
[203,null,null,null,null,null,null,null,null,null,null,null,null,null,null,null,null,null,null,null,"",null,null,null,null,null,null,null,""]
[204,null,null,null,null,null,null,null,null,null,null,null,null,null,null,null,null,null,null,null,"",null,null,null,null,null,null,null,""]
[205,null,null,null,null,null,null,null,null,null,null,null,null,null,null,null,null,null,null,null,"",null,null,null,null,null,null,null,""]
[206,null,null,null,null,null,null,null,null,null,null,null,null,null,null,null,null,null,null,null,"",null,null,null,null,null,null,null,""]
[207,null,null,null,null,null,null,null,null,null,null,null,null,null,null,null,null,null,null,null,"",null,null,null,null,null,null,null,""]
[208,null,null,null,null,null,null,null,null,null,null,null,null,null,null,null,null,null,null,null,"",null,null,null,null,null,null,null,""]
[209,null,null,null,null,null,null,null,null,null,null,null,null,null,null,null,null,null,null,null,"",null,null,null,null,null,null,null,""]
[210,null,null,null,null,null,null,null,null,null,null,null,null,null,null,null,null,null,null,null,"",null,null,null,null,null,null,null,""]
[211,null,null,null,null,null,null,null,null,null,null,null,null,null,null,null,null,null,null,null,"",null,null,null,null,null,null,null,""]
[212,null,null,null,null,null,null,null,null,null,null,null,null,null,null,null,null,null,null,null,"",null,null,null,null,null,null,null,""]
[213,null,null,null,null,null,null,null,null,null,null,null,null,null,null,null,null,null,null,null,"",null,null,null,null,null,null,null,""]
[214,null,null,null,null,null,null,null,null,null,null,null,null,null,null,null,null,null,null,null,"",null,null,null,null,null,null,null,""]
[215,null,null,null,null,null,null,null,null,null,null,null,null,null,null,null,null,null,null,null,"",null,null,null,null,null,null,null,""]
[216,null,null,null,null,null,null,null,null,null,null,null,null,null,null,null,null,null,null,null,"",null,null,null,null,null,null,null,""]
[217,null,null,null,null,null,null,null,null,null,null,null,null,null,null,null,null,null,null,null,"",null,null,null,null,null,null,null,""]
[218,null,null,null,null,null,null,null,null,null,null,null,null,null,null,null,null,null,null,null,"",null,null,null,null,null,null,null,""]
[219,null,null,null,null,null,null,null,null,null,null,null,null,null,null,null,null,null,null,null,"",null,null,null,null,null,null,null,""]
[220,null,null,null,null,null,null,null,null,null,null,null,null,null,null,null,null,null,null,null,"",null,null,null,null,null,null,null,""]
[221,null,null,null,null,null,null,null,null,null,null,null,null,null,null,null,null,null,null,null,"",null,null,null,null,null,null,null,""]
[222,null,null,null,null,null,null,null,null,null,null,null,null,null,null,null,null,null,null,null,"",null,null,null,null,null,null,null,""]
[223,null,null,null,null,null,null,null,null,null,null,null,null,null,null,null,null,null,null,null,"",null,null,null,null,null,null,null,""]
[224,null,null,null,null,null,null,null,null,null,null,null,null,null,null,null,null,null,null,null,"",null,null,null,null,null,null,null,""]
[225,null,null,null,null,null,null,null,null,null,null,null,null,null,null,null,null,null,null,null,"",null,null,null,null,null,null,null,""]
[226,null,null,null,null,null,null,null,null,null,null,null,null,null,null,null,null,null,null,null,"",null,null,null,null,null,null,null,""]
[227,null,null,null,null,null,null,null,null,null,null,null,null,null,null,null,null,null,null,null,"",null,null,null,null,null,null,null,""]
[228,null,null,null,null,null,null,null,null,null,null,null,null,null,null,null,null,null,null,null,"",null,null,null,null,null,null,null,""]
[229,null,null,null,null,null,null,null,null,null,null,null,null,null,null,null,null,null,null,null,"",null,null,null,null,null,null,null,""]
[230,null,null,null,null,null,null,null,null,null,null,null,null,null,null,null,null,null,null,null,"",null,null,null,null,null,null,null,""]
[231,null,null,null,null,null,null,null,null,null,null,null,null,null,null,null,null,null,null,null,"",null,null,null,null,null,null,null,""]
[232,null,null,null,null,null,null,null,null,null,null,null,null,null,null,null,null,null,null,null,"",null,null,null,null,null,null,null,""]
[233,null,null,null,null,null,null,null,null,null,null,null,null,null,null,null,null,null,null,null,"",null,null,null,null,null,null,null,""]
[234,null,null,null,null,null,null,null,null,null,null,null,null,null,null,null,null,null,null,null,"",null,null,null,null,null,null,null,""]
[235,null,null,null,null,null,null,null,null,null,null,null,null,null,null,null,null,null,null,null,"",null,null,null,null,null,null,null,""]
[236,null,null,null,null,null,null,null,null,null,null,null,null,null,null,null,null,null,null,null,"",null,null,null,null,null,null,null,""]
[237,null,null,null,null,null,null,null,null,null,null,null,null,null,null,null,null,null,null,null,"",null,null,null,null,null,null,null,""]
[238,null,null,null,null,null,null,null,null,null,null,null,null,null,null,null,null,null,null,null,"",null,null,null,null,null,null,null,""]
[239,null,null,null,null,null,null,null,null,null,null,null,null,null,null,null,null,null,null,null,"",null,null,null,null,null,null,null,""]
[240,null,null,null,null,null,null,null,null,null,null,null,null,null,null,null,null,null,null,null,"",null,null,null,null,null,null,null,""]
[241,null,null,null,null,null,null,null,null,null,null,null,null,null,null,null,null,null,null,null,"",null,null,null,null,null,null,null,""]
[242,null,null,null,null,null,null,null,null,null,null,null,null,null,null,null,null,null,null,null,"",null,null,null,null,null,null,null,""]
[243,null,null,null,null,null,null,null,null,null,null,null,null,null,null,null,null,null,null,null,"",null,null,null,null,null,null,null,""]
[244,null,null,null,null,null,null,null,null,null,null,null,null,null,null,null,null,null,null,null,"",null,null,null,null,null,null,null,""]
[245,null,null,null,null,null,null,null,null,null,null,null,null,null,null,null,null,null,null,null,"",null,null,null,null,null,null,null,""]
[246,null,null,null,null,null,null,null,null,null,null,null,null,null,null,null,null,null,null,null,"",null,null,null,null,null,null,null,""]
[247,null,null,null,null,null,null,null,null,null,null,null,null,null,null,null,null,null,null,null,"",null,null,null,null,null,null,null,""]
[248,null,null,null,null,null,null,null,null,null,null,null,null,null,null,null,null,null,null,null,"",null,null,null,null,null,null,null,""]
[249,null,null,null,null,null,null,null,null,null,null,null,null,null,null,null,null,null,null,null,"",null,null,null,null,null,null,null,""]
[250,null,null,null,null,null,null,null,null,null,null,null,null,null,null,null,null,null,null,null,"",null,null,null,null,null,null,null,""]
[251,null,null,null,null,null,null,null,null,null,null,null,null,null,null,null,null,null,null,null,"",null,null,null,null,null,null,null,""]
[252,null,null,null,null,null,null,null,null,null,null,null,null,null,null,null,null,null,null,null,"",null,null,null,null,null,null,null,""]
[253,null,null,null,null,null,null,null,null,null,null,null,null,null,null,null,null,null,null,null,"",null,null,null,null,null,null,null,""]
[254,null,null,null,null,null,null,null,null,null,null,null,null,null,null,null,null,null,null,null,"",null,null,null,null,null,null,null,""]
[255,null,null,null,null,null,null,null,null,null,null,null,null,null,null,null,null,null,null,null,"",null,null,null,null,null,null,null,""]
[256,null,null,null,null,null,null,null,null,null,null,null,null,null,null,null,null,null,null,null,"",null,null,null,null,null,null,null,""]
[257,null,null,null,null,null,null,null,null,null,null,null,null,null,null,null,null,null,null,null,{"$f":"IF(M260<>\"\",M260+1,\"\")","v":""},null,null,null,null,null,null,null,{"$f":"IF(M260<>\"\",M260+2,\"\")","v":""}]
[258,null,null,null,null,null,null,null,null,null,null,null,null,null,null,null,null,null,null,null,"",null,null,null,null,null,null,null,""]
[259,null,null,null,null,null,null,null,null,null,null,null,null,null,null,null,null,null,null,null,"",null,null,null,null,null,null,null,""]
[260,null,null,null,null,null,null,null,null,null,null,null,null,null,null,null,null,null,null,null,"",null,null,null,null,null,null,null,""]
[261,null,null,null,null,null,null,null,null,null,null,null,null,null,null,null,null,null,null,null,"",null,null,null,null,null,null,null,""]
[262,null,null,null,null,null,null,null,null,null,null,null,null,null,null,null,null,null,null,null,"",null,null,null,null,null,null,null,""]
[263,null,null,null,null,null,null,null,null,null,null,null,null,null,null,null,null,null,null,null,"",null,null,null,null,null,null,null,""]
[264,null,null,null,null,null,null,null,null,null,null,null,null,null,null,null,null,null,null,null,"",null,null,null,null,null,null,null,""]
[265,null,null,null,null,null,null,null,null,null,null,null,null,null,null,null,null,null,null,null,"",null,null,null,null,null,null,null,""]
[266,null,null,null,null,null,null,null,null,null,null,null,null,null,null,null,null,null,null,null,"",null,null,null,null,null,null,null,""]
[267,null,null,null,null,null,null,null,null,null,null,null,null,null,null,null,null,null,null,null,"",null,null,null,null,null,null,null,""]
[268,null,null,null,null,null,null,null,null,null,null,null,null,null,null,null,null,null,null,null,"",null,null,null,null,null,null,null,""]
[269,null,null,null,null,null,null,null,null,null,null,null,null,null,null,null,null,null,null,null,"",null,null,null,null,null,null,null,""]
[270,null,null,null,null,null,null,null,null,null,null,null,null,null,null,null,null,null,null,null,"",null,null,null,null,null,null,null,""]
[271,null,null,null,null,null,null,null,null,null,null,null,null,null,null,null,null,null,null,null,"",null,null,null,null,null,null,null,""]
[272,null,null,null,null,null,null,null,null,null,null,null,null,null,null,null,null,null,null,null,"",null,null,null,null,null,null,null,""]
[273,null,null,null,null,null,null,null,null,null,null,null,null,null,null,null,null,null,null,null,"",null,null,null,null,null,null,null,""]
[274,null,null,null,null,null,null,null,null,null,null,null,null,null,null,null,null,null,null,null,"",null,null,null,null,null,null,null,""]
[275,null,null,null,null,null,null,null,null,null,null,null,null,null,null,null,null,null,null,null,"",null,null,null,null,null,null,null,""]
[276,null,null,null,null,null,null,null,null,null,null,null,null,null,null,null,null,null,null,null,"",null,null,null,null,null,null,null,""]
[277,null,null,null,null,null,null,null,null,null,null,null,null,null,null,null,null,null,null,null,"",null,null,null,null,null,null,null,""]
[278,null,null,null,null,null,null,null,null,null,null,null,null,null,null,null,null,null,null,null,"",null,null,null,null,null,null,null,""]
[279,null,null,null,null,null,null,null,null,null,null,null,null,null,null,null,null,null,null,null,"",null,null,null,null,null,null,null,""]
[280,null,null,null,null,null,null,null,null,null,null,null,null,null,null,null,null,null,null,null,"",null,null,null,null,null,null,null,""]
[281,null,null,null,null,null,null,null,null,null,null,null,null,null,null,null,null,null,null,null,"",null,null,null,null,null,null,null,""]
[282,null,null,null,null,null,null,null,null,null,null,null,null,null,null,null,null,null,null,null,"",null,null,null,null,null,null,null,""]
[283,null,null,null,null,null,null,null,null,null,null,null,null,null,null,null,null,null,null,null,"",null,null,null,null,null,null,null,""]
[284,null,null,null,null,null,null,null,null,null,null,null,null,null,null,null,null,null,null,null,"",null,null,null,null,null,null,null,""]
[285,null,null,null,null,null,null,null,null,null,null,null,null,null,null,null,null,null,null,null,"",null,null,null,null,null,null,null,""]
[286,null,null,null,null,null,null,null,null,null,null,null,null,null,null,null,null,null,null,null,"",null,null,null,null,null,null,null,""]
[287,null,null,null,null,null,null,null,null,null,null,null,null,null,null,null,null,null,null,null,"",null,null,null,null,null,null,null,""]
[288,null,null,null,null,null,null,null,null,null,null,null,null,null,null,null,null,null,null,null,"",null,null,null,null,null,null,null,""]
[289,null,null,null,null,null,null,null,null,null,null,null,null,null,null,null,null,null,null,null,"",null,null,null,null,null,null,null,""]
[290,null,null,null,null,null,null,null,null,null,null,null,null,null,null,null,null,null,null,null,"",null,null,null,null,null,null,null,""]
[291,null,null,null,null,null,null,null,null,null,null,null,null,null,null,null,null,null,null,null,"",null,null,null,null,null,null,null,""]
[292,null,null,null,null,null,null,null,null,null,null,null,null,null,null,null,null,null,null,null,"",null,null,null,null,null,null,null,""]
[293,null,null,null,null,null,null,null,null,null,null,null,null,null,null,null,null,null,null,null,"",null,null,null,null,null,null,null,""]
[294,null,null,null,null,null,null,null,null,null,null,null,null,null,null,null,null,null,null,null,"",null,null,null,null,null,null,null,""]
[295,null,null,null,null,null,null,null,null,null,null,null,null,null,null,null,null,null,null,null,"",null,null,null,null,null,null,null,""]
[296,null,null,null,null,null,null,null,null,null,null,null,null,null,null,null,null,null,null,null,"",null,null,null,null,null,null,null,""]
[297,null,null,null,null,null,null,null,null,null,null,null,null,null,null,null,null,null,null,null,"",null,null,null,null,null,null,null,""]
[298,null,null,null,null,null,null,null,null,null,null,null,null,null,null,null,null,null,null,null,"",null,null,null,null,null,null,null,""]
[299,null,null,null,null,null,null,null,null,null,null,null,null,null,null,null,null,null,null,null,"",null,null,null,null,null,null,null,""]
[300,null,null,null,null,null,null,null,null,null,null,null,null,null,null,null,null,null,null,null,"",null,null,null,null,null,null,null,""]

{"sheet":"請求書・領収書兼提供証明書","index":3,"n_rows":118,"n_cols":106,"rows_kept":118,"cut":false,"hidden":false,"merged":[[26,98,27,100],[28,98,29,100],[30,98,32,100],[46,3,49,13],[50,3,53,13],[54,3,57,13],[5,40,5,43],[5,44,5,47],[5,48,5,49],[17,7,17,25],[27,42,27,54],[29,32,29,54],[33,1,35,9],[38,3,41,13],[42,3,45,13],[5,1,5,4],[5,9,5,10],[5,5,5,8],[5,14,5,17],[5,22,5,23],[5,18,5,21],[5,27,5,30],[5,31,5,34],[5,35,5,36],[79,86,80,86],[81,86,82,86],[83,86,84,86],[85,84,87,84],[88,84,89,84],[85,85,87,86],[88,85,89,86],[79,84,80,85],[81,84,82,85],[83,84,84,85],[88,90,89,90],[90,90,92,90],[83,90,84,90],[85,90,87,90],[79,90,80,90],[81,90,82,90],[79,87,80,89],[81,87,82,89],[83,87,84,89],[85,87,87,89],[88,87,89,89],[79,91,80,93],[81,91,82,93],[83,91,84,93],[85,91,87,93],[88,91,89,93],[90,91,92,93],[93,91,94,93],[95,91,96,93],[97,91,98,93],[102,94,102,97],[102,84,102,85],[90,87,92,89],[93,87,94,89],[95,87,96,89],[97,87,98,89],[97,90,98,90],[100,90,101,90],[99,87,99,89],[100,87,101,89],[93,90,94,90],[95,90,96,90],[102,87,102,89],[99,91,99,93],[100,91,101,93],[102,91,102,93],[100,86,101,86],[90,84,92,84],[90,85,92,86],[93,84,94,85],[95,84,96,85],[99,84,99,85],[100,84,101,85],[97,84,98,85],[100,98,101,98],[79,94,80,97],[81,94,82,97],[83,94,84,97],[85,94,87,97],[88,94,89,97],[90,94,92,97],[93,94,94,97],[95,94,96,97],[97,94,98,97],[79,98,80,98],[81,98,82,98],[83,98,84,98],[85,98,87,98],[88,98,89,98],[90,98,92,98],[93,98,94,98],[95,98,96,98],[97,98,98,98],[99,94,99,97],[100,94,101,97],[93,86,94,86],[95,86,96,86],[97,86,98,86],[102,80,102,81],[79,83,80,83],[81,83,82,83],[83,83,84,83],[85,83,87,83],[88,83,89,83],[90,83,92,83],[93,83,94,83],[95,83,96,83],[97,83,98,83],[100,83,101,83],[85,80,87,80],[88,80,89,80],[90,80,92,80],[85,81,87,81],[88,81,89,81],[90,81,92,81],[100,82,101,82],[79,80,80,81],[81,80,82,81],[83,80,84,81],[99,80,99,81],[100,80,101,81],[79,82,80,82],[71,65,71,66],[81,82,82,82],[83,82,84,82],[85,82,87,82],[88,82,89,82],[90,82,92,82],[93,82,94,82],[95,82,96,82],[97,82,98,82],[97,80,98,81],[93,80,94,81],[95,80,96,81],[72,65,72,66],[79,72,84,76],[85,72,92,76],[93,72,98,76],[88,79,89,79],[90,79,92,79],[93,79,94,79],[95,79,96,79],[97,79,98,79],[71,1,71,4],[71,5,71,6],[72,1,72,4],[72,5,72,6],[84,10,84,11],[85,10,85,11],[84,7,84,9],[85,7,85,9],[84,5,84,6],[85,5,85,6],[84,1,84,4],[85,1,85,4],[77,0,77,2],[77,3,78,58],[71,55,71,56],[71,57,71,64],[72,22,72,24],[72,25,72,26],[85,12,85,27],[85,31,85,46],[85,50,85,64],[72,7,72,9],[72,10,72,11],[71,25,71,26],[54,17,54,39],[42,40,42,41],[54,40,54,41],[51,14,53,39],[42,51,42,54],[42,55,42,66],[46,40,46,41],[46,42,46,50],[46,51,46,54],[46,55,46,66],[50,40,50,41],[50,42,50,50],[50,51,50,54],[50,55,50,66],[54,55,54,66],[54,42,54,50],[54,51,54,54],[42,42,42,50],[108,44,108,65],[109,2,109,49],[111,2,111,15],[113,2,113,6],[115,2,115,6],[60,1,60,66],[62,2,62,13],[92,4,97,66],[99,3,100,66],[99,1,99,2],[80,1,80,66],[101,1,101,2],[84,65,84,66],[81,1,83,11],[101,3,102,66],[87,1,87,3],[87,4,89,66],[90,1,90,3],[90,4,91,66],[92,1,92,3],[86,10,86,11],[86,7,86,9],[86,5,86,6],[86,1,86,4],[117,2,118,6],[113,35,113,39],[115,35,115,39],[117,35,118,39],[113,7,113,33],[117,7,118,33],[113,40,113,65],[117,40,118,65],[115,7,115,30],[115,31,115,33],[115,40,115,62],[115,63,115,65],[86,12,86,27],[86,31,86,46],[86,50,86,64],[86,65,86,66],[81,12,83,30],[81,31,83,49],[81,50,83,66],[84,12,84,27],[84,31,84,46],[84,50,84,64],[85,65,85,66],[71,35,71,36],[71,37,71,44],[71,45,71,46],[71,47,71,54],[71,7,71,9],[71,10,71,11],[71,12,71,19],[71,20,71,21],[71,22,71,24],[72,35,72,36],[72,37,72,44],[72,45,72,46],[72,47,72,54],[72,55,72,56],[72,12,72,19],[72,20,72,21],[32,55,35,67],[34,31,35,54],[47,40,49,66],[37,40,37,66],[39,40,41,66],[47,14,49,39],[37,14,37,39],[33,42,33,44],[33,45,33,54],[43,40,45,66],[38,55,38,66],[42,14,42,16],[42,17,42,39],[46,14,46,16],[46,17,46,39],[33,10,33,12],[71,27,71,34],[11,48,11,52],[34,10,35,30],[37,1,37,13],[27,1,27,8],[28,1,29,8],[38,51,38,54],[15,7,16,25],[19,36,19,45],[19,52,19,53],[11,53,11,67],[14,31,17,36],[14,37,14,43],[15,37,17,39],[19,6,19,35],[14,44,14,49],[14,50,14,51],[20,49,20,51],[2,0,2,67],[6,1,6,10],[6,14,6,23],[6,27,6,36],[6,40,6,49],[4,51,6,66],[4,1,4,2],[4,3,4,10],[4,14,4,15],[4,16,4,23],[4,27,4,28],[4,29,4,36],[4,40,4,41],[4,42,4,49],[0,52,0,67],[1,52,1,58],[1,59,1,67],[7,2,9,49],[10,2,10,65],[32,1,32,9],[32,10,32,30],[32,31,32,54],[27,9,27,25],[28,9,29,25],[27,26,27,41],[28,26,28,31],[29,26,29,31],[28,32,28,54],[15,1,16,6],[18,1,18,3],[18,4,18,66],[23,4,24,66],[23,1,24,3],[16,40,17,66],[20,6,21,15],[19,1,19,5],[31,1,31,66],[26,1,26,66],[111,35,111,52],[103,1,103,2],[103,3,104,66],[55,14,57,39],[38,1,41,2],[42,1,45,2],[46,1,49,2],[50,1,53,2],[54,1,57,2],[43,14,45,39],[107,7,107,60],[73,0,73,2],[75,0,75,2],[58,1,58,66],[105,1,105,2],[70,22,70,24],[70,25,70,26],[70,27,70,34],[70,35,70,36],[38,14,38,16],[38,17,38,39],[38,40,38,41],[38,42,38,50],[72,27,72,34],[64,1,64,66],[65,1,69,11],[65,12,65,46],[65,47,69,56],[65,57,69,66],[12,1,13,45],[20,64,20,66],[21,16,21,25],[21,26,21,31],[21,32,21,35],[21,36,21,45],[21,46,21,66],[20,46,20,48],[20,52,20,54],[20,55,20,57],[17,1,17,6],[20,16,20,25],[20,26,20,31],[33,13,33,30],[33,31,33,32],[33,33,33,41],[50,14,50,16],[50,17,50,39],[54,14,54,16],[21,85,22,89],[19,60,19,66],[20,58,20,60],[20,61,20,63],[14,61,14,66],[14,1,14,6],[14,52,14,58],[14,59,14,60],[20,32,20,35],[20,36,20,45],[15,42,15,66],[14,7,14,25],[14,26,17,30],[105,3,105,66],[39,14,41,39],[73,3,74,60],[75,3,76,60],[62,46,62,66],[51,40,53,66],[55,40,57,66],[70,10,70,11],[70,12,70,19],[70,20,70,21],[66,12,69,21],[66,22,69,26],[66,27,69,36],[66,37,69,46],[70,37,70,44],[70,45,70,46],[70,47,70,54],[70,55,70,56],[70,57,70,64],[70,65,70,66],[70,7,70,9],[70,5,70,6],[70,1,70,4],[72,57,72,64],[17,90,18,99],[19,90,20,99],[21,90,22,99],[1,98,1,99],[1,95,1,96],[1,90,1,93],[3,69,5,100],[6,69,6,100],[9,69,10,73],[9,74,10,81],[9,82,10,82],[12,70,13,82],[12,83,13,85],[12,86,13,86],[12,87,13,87],[12,88,13,88],[12,89,13,89],[12,90,13,90],[12,91,13,91],[12,92,13,95],[15,90,16,99],[15,85,16,89],[17,85,18,89],[19,85,20,89],[26,83,27,84],[28,83,29,84],[30,83,32,84],[26,79,27,82],[28,79,29,82],[30,79,32,82],[26,72,32,78],[26,96,27,97],[28,96,29,97],[30,96,32,97],[26,89,27,95],[28,89,29,95],[30,89,32,95],[26,87,27,88],[28,87,29,88],[30,87,32,88],[26,85,27,86],[28,85,29,86],[30,85,32,86],[37,86,38,92],[39,86,40,92],[41,86,42,92],[37,93,38,94],[39,93,40,94],[41,93,42,94],[39,97,40,98],[46,73,47,74],[37,73,38,74],[39,73,40,74],[41,73,42,74],[37,75,38,85],[39,75,40,85],[41,75,42,85],[69,77,69,86],[70,75,71,76],[70,77,71,86],[76,71,78,76],[76,77,78,79],[62,92,62,101],[46,99,47,100],[48,99,49,100],[50,99,51,100],[55,72,56,99],[48,73,49,74],[50,73,51,74],[48,75,49,93],[50,75,51,93],[46,75,47,93],[46,94,47,98],[48,94,49,98],[50,94,51,98],[76,80,78,86],[76,87,78,93],[76,94,78,98],[99,72,102,76],[79,71,84,71],[85,71,92,71],[93,71,98,71],[99,71,102,71],[69,72,71,74],[69,75,69,76],[102,77,102,78],[100,79,101,79],[79,77,80,78],[81,77,82,78],[83,77,84,78],[85,77,87,78],[88,77,89,78],[90,77,92,78],[93,77,94,78],[95,77,96,78],[97,77,98,78],[99,77,99,78],[100,77,101,78],[79,79,80,79],[81,79,82,79],[83,79,84,79],[85,79,87,79]]}
[null,null,null,null,null,null,null,null,null,null,null,null,null,null,null,null,null,null,null,null,null,null,"　",null,null,null,null,null,null,null,null,null,null,null,null,null,null,null,null,null,null,null,null,null,null,null,null,null,null,null,null,null,"＜神戸市記入欄＞"]
[null,"（宛先）神戸市長",null,null,null,null,null,null,null,null,null,null,null,null,null,null,null,null,null,null,null,null,null,null,null,null,null,null,null,null,null,null,null,null,null,null,null,null,null,null,null,null,null,null,null,null,null,null,null,null,null,null,"こどもコード",null,null,null,null,null,null,null,null,null,null,null,null,null,null,null,null,null,null,null,null,null,null,null,null,null,null,null,null,null,null,null,null,null,null,null,null,null,null,null,null,null,"年",null,null,"月",null,null,"日"]
["施設等利用費請求書（償還払い用）"]
[null,null,null,null,null,null,null,null,null,null,null,null,null,null,null,null,null,null,null,null,null,null,null,null,null,null,null,null,null,null,null,null,null,null,null,null,null,null,null,null,null,null,null,null,null,null,null,null,null,null,null,null,null,null,null,null,null,null,null,null,null,null,null,null,null,null,null,null,null,"特定子ども・子育て支援の提供に係る領収証兼提供証明書"]
[null,{"$f":"IF(VLOOKUP($DA$5,入力用リスト!$A$3:$AJ$303,13,FALSE)=4,\"☑\",\"\")","v":"☑"},null,"第１期",null,null,null,null,null,null,null,null,null,null,{"$f":"IF(VLOOKUP($DA$5,入力用リスト!$A$3:$AJ$303,13,FALSE)=7,\"☑\",\"\")","v":""},null,"第２期",null,null,null,null,null,null,null,null,null,null,{"$f":"IF(VLOOKUP($DA$5,入力用リスト!$A$3:$AJ$303,13,FALSE)=10,\"☑\",\"\")","v":""},null,"第３期",null,null,null,null,null,null,null,null,null,null,{"$f":"IF(VLOOKUP($DA$5,入力用リスト!$A$3:$AJ$303,13,FALSE)=1,\"☑\",\"\")","v":""},null,"第４期",null,null,null,null,null,null,null,null,"←期をまたがって請求はできません。いずれか１つにチェックしてください。",null,null,null,null,null,null,null,null,null,null,null,null,null,null,null,null,null,null,null,null,null,null,null,null,null,null,null,null,null,null,null,null,null,null,null,null,null,null,null,null,null,null,null,null,null,null,null,null,null,null,null,null,3]
[null,"令和",null,null,null,{"$f":"IF($B$5<>\"\",VLOOKUP($DA$5,入力用リスト!$A$3:$AJ$303,12,FALSE)-2018,\"\")","v":4},null,null,null,"年",null,null,null,null,"令和",null,null,null,{"$f":"IF(O5<>\"\",VLOOKUP($DA$5,入力用リスト!$A$3:$AJ$303,12,FALSE)-2018,\"\")","v":""},null,null,null,"年",null,null,null,null,"令和",null,null,null,{"$f":"IF(AB5<>\"\",VLOOKUP($DA$5,入力用リスト!$A$3:$AJ$303,12,FALSE)-2018,\"\")","v":""},null,null,null,"年",null,null,null,null,"令和",null,null,null,{"$f":"IF(AO5<>\"\",VLOOKUP($DA$5,入力用リスト!$A$3:$AJ$303,12,FALSE)-2018,\"\")","v":""},null,null,null,"年"]
[null,"４月～６月分",null,null,null,null,null,null,null,null,null,null,null,null,"７月～９月分",null,null,null,null,null,null,null,null,null,null,null,null,"10月～12月分",null,null,null,null,null,null,null,null,null,null,null,null,"１月～３月分",null,null,null,null,null,null,null,null,null,null,null,null,null,null,null,null,null,null,null,null,null,null,null,null,null,null,null,null,"預かり保育事業・認可外保育施設・一時預かり事業・病児保育"]
[null,null,"　私は、子ども・子育て支援法第３０条の１１第１項の規定に基づき、施設等利用費の給付について、下記の通り請求しますので、指定する振込先口座に振り込んで下さい。\n　なお、施設等利用費の審査にあたり、次の事項に同意します。"]
[]
[null,null,null,null,null,null,null,null,null,null,null,null,null,null,null,null,null,null,null,null,null,null,null,null,null,null,null,null,null,null,null,null,null,null,null,null,null,null,null,null,null,null,null,null,null,null,null,null,null,null,null,null,null,null,null,null,null,null,null,null,null,null,null,null,null,null,null,null,null,"納　入　者\n（保護者）",null,null,null,null,{"$f":"VLOOKUP($DA$5,入力用リスト!$A$3:$AJ$303,2,FALSE)&\"\"","v":"兵庫　花子"},null,null,null,null,null,null,null,"様"]
[null,null,"１．申請者と認定子どもが、神戸市内に居住していることを神戸市が住民基本台帳で確認すること。\n２．実際に利用していることを神戸市が対象施設に確認すること。\n３．利用料の支払い状況を神戸市が対象施設に確認すること。\n４．課税状況を神戸市が確認すること。"]
[null,null,null,null,null,null,null,null,null,null,null,null,null,null,null,null,null,null,null,null,null,null,null,null,null,null,null,null,null,null,null,null,null,null,null,null,null,null,null,null,null,null,null,null,null,null,null,null,"請求日",null,null,null,null,"　　　年　月　日"]
[null,"1．施設等利用給付認定保護者(請求者)および振込先口座",null,null,null,null,null,null,null,null,null,null,null,null,null,null,null,null,null,null,null,null,null,null,null,null,null,null,null,null,null,null,null,null,null,null,null,null,null,null,null,null,null,null,null,null,null,null,null,null,null,null,null,null,null,null,null,null,null,null,null,null,null,null,null,null,null,null,null,null,"ただし、特定子ども・子育て支援利用料（",null,null,null,null,null,null,null,null,null,null,null,null,{"$f":"VLOOKUP($DA$5,入力用リスト!$A$3:$AJ$303,12,FALSE)&\"\"","v":"2022"},null,null,"年",{"$f":"VLOOKUP($DA$5,入力用リスト!$A$3:$AJ$303,13,FALSE)&\"\"","v":"4"},"月","～",{"$f":"VLOOKUP($DA$5,入力用リスト!$A$3:$AJ$303,29,FALSE)&\"\"","v":"6"},"月","）分として"]
[null,null,null,null,null,null,null,null,null,null,null,null,null,null,null,null,null,null,null,null,null,null,null,null,null,null,null,null,null,null,null,null,null,null,null,null,null,null,null,null,null,null,null,null,null,null,null,null,null,null,null,null,null,null,null,null,null,null,null,null,null,null,null,null,null,null,null,null,null,null,null,null,null,null,null,null,null,null,null,null,null,null,null,null,null,null,null,null,null,null,null,null,null,null,null,null,null,null,null,null,null,null,null,null,"印刷開始NO","印刷終了NO"]
[null,"フリガナ",null,null,null,null,null,{"$f":"VLOOKUP($DA$5,入力用リスト!$A$3:$AJ$303,3,FALSE)&\"\"","v":"ヒョウゴ　ハナコ"},null,null,null,null,null,null,null,null,null,null,null,null,null,null,null,null,null,null,"認定\n子どもとの\n続柄",null,null,null,null,{"$f":"VLOOKUP($DA$5,入力用リスト!$A$3:$AJ$303,5,FALSE)&\"\"","v":"母"},null,null,null,null,null,"電話：",null,null,null,null,null,null,null,null,null,null,null,null,"-",null,null,null,null,null,null,null,null,"-",null,null,null,null,null,null,null,null,null,null,null,null,null,null,null,null,null,null,null,null,null,null,null,null,null,null,null,null,null,null,null,null,null,null,null,null,null,null,null,null,null,null,null,null,1,3]
[null,"氏名※１",null,null,null,null,null,{"$f":"VLOOKUP($DA$5,入力用リスト!$A$3:$AJ$303,2,FALSE)&\"\"","v":"兵庫　花子"},null,null,null,null,null,null,null,null,null,null,null,null,null,null,null,null,null,null,null,null,null,null,null,null,null,null,null,null,null,"現住所",null,null,"〒",null,null,null,null,null,null,null,null,null,null,null,null,null,null,null,null,null,null,null,null,null,null,null,null,null,null,null,null,null,null,null,null,null,null,null,null,null,null,null,null,null,null,null,null,"設置者名称",null,null,null,null,{"$f":"IF(施設情報!$C$2<>0,施設情報!$C$3,IF(施設情報!$L$2<>0,施設情報!$L$3,\"\"))","v":"学校法人　こども家庭学園"}]
[null,null,null,null,null,null,null,null,null,null,null,null,null,null,null,null,null,null,null,null,null,null,null,null,null,null,null,null,null,null,null,null,null,null,null,null,null,null,null,null,{"$f":"VLOOKUP($DA$5,入力用リスト!$A$3:$AJ$303,6,FALSE)&\"\"","v":"神戸市兵庫区□□町7－8－9"}]
[null,"生年月日",null,null,null,null,null,{"$f":"VLOOKUP($DA$5,入力用リスト!$A$3:$AJ$303,4,FALSE)&\"\"","v":"1985年11月1日"},null,null,null,null,null,null,null,null,null,null,null,null,null,null,null,null,null,null,null,null,null,null,null,null,null,null,null,null,null,null,null,null,null,null,null,null,null,null,null,null,null,null,null,null,null,null,null,null,null,null,null,null,null,null,null,null,null,null,null,null,null,null,null,null,null,null,null,null,null,null,null,null,null,null,null,null,null,"主たる事業所\nの所在地",null,null,null,null,{"$f":"IF(施設情報!$C$2<>0,施設情報!$C$4,IF(施設情報!$L$2<>0,施設情報!$L$4,\"\"))","v":"神戸市中央区加納町6－5－1"}]
[null,"※1",null,null,"請求者氏名は、必ず「子育てのための施設等利用給付認定決定通知書」に記載された保護者氏名を記入してください。"]
[null,"請求区分",null,null,null,null,"金融機関名",null,null,null,null,null,null,null,null,null,null,null,null,null,null,null,null,null,null,null,null,null,null,null,null,null,null,null,null,null,"預金種目",null,null,null,null,null,null,null,null,null,"□",null,"普通",null,null,null,null,null,"□",null,"当座",null,null,null,null,null,null,null,null,null,null,null,null,null,null,null,null,null,null,null,null,null,null,null,null,null,null,null,null,"代表者職氏名",null,null,null,null,{"$f":"IF(施設情報!$C$2<>0,施設情報!$C$7,IF(施設情報!$L$2<>0,施設情報!$L$7,\"\"))","v":"給付　一郎"}]
[null,"□新規",null,null,null,null,null,null,null,null,null,null,null,null,null,null,"銀行・信用金庫",null,null,null,null,null,null,null,null,null,null,null,null,null,null,null,"支店",null,null,null,"口座番号"]
[null,"□変更",null,null,null,null,null,null,null,null,null,null,null,null,null,null,"農協・信用組合",null,null,null,null,null,null,null,null,null,null,null,null,null,null,null,"出張所",null,null,null,"口座名義(カタカナ)※２",null,null,null,null,null,null,null,null,null,null,null,null,null,null,null,null,null,null,null,null,null,null,null,null,null,null,null,null,null,null,null,null,null,null,null,null,null,null,null,null,null,null,null,null,null,null,null,null,"施設・事業所の名称",null,null,null,null,{"$f":"IF(施設情報!$C$2<>0,施設情報!$C$8,IF(施設情報!$L$2<>0,施設情報!$L$8,\"\"))","v":"幼保事業課認定こども園"}]
[null,"□継続",null,null,null,null,"→直近の振込先と同じ口座に振り込みさせていただきますので、振込先口座の記入は不要です。"]
[null,"※2",null,null,"請求者名義と異なる振込先を指定する場合は、本紙裏面の委任状欄をご記入ください。\n区分が新規または変更の場合は、通帳のコピー等、口座情報が確認できる書類を添付してください。"]
[]
[]
[null,"2．認定子ども(認定子どもごとに申請して下さい)",null,null,null,null,null,null,null,null,null,null,null,null,null,null,null,null,null,null,null,null,null,null,null,null,null,null,null,null,null,null,null,null,null,null,null,null,null,null,null,null,null,null,null,null,null,null,null,null,null,null,null,null,null,null,null,null,null,null,null,null,null,null,null,null,null,null,null,null,null,null,"特定子ども・子育て支援利用料の領収金額\n（下記①の金額）",null,null,null,null,null,null,{"$f":"VLOOKUP($DA$5,入力用リスト!$A$3:$AJ$303,12,FALSE)&\"\"","v":"2022"},null,null,null,"年",null,{"$f":"VLOOKUP($DA$5,入力用リスト!$A$3:$AJ$303,13,FALSE)&\"\"","v":"4"},null,"月分",null,{"$f":"VLOOKUP($DA$5,入力用リスト!$A$3:$AJ$303,19,FALSE)","v":6000},null,null,null,null,null,null,"円",null,{"$f":"IF($BT$86=\"○\",\"(\"&VLOOKUP($DA$5,入力用リスト!$A$3:$AJ$303,18,FALSE)&\"日)\",\"\")","v":"(10日)"}]
[null,"フリガナ",null,null,null,null,null,null,null,{"$f":"VLOOKUP($DA$5,入力用リスト!$A$3:$AJ$303,8,FALSE)&\"\"","v":"ヒョウゴ　ジロウ"},null,null,null,null,null,null,null,null,null,null,null,null,null,null,null,null,"施設等利用給付認定種別",null,null,null,null,null,null,null,null,null,null,null,null,null,null,null,{"$f":"VLOOKUP($DA$5,入力用リスト!$A$3:$AJ$303,9,FALSE)&\"\"","v":"第3号"}]
[null,"氏名",null,null,null,null,null,null,null,{"$f":"VLOOKUP($DA$5,入力用リスト!$A$3:$AJ$303,7,FALSE)&\"\"","v":"兵庫　次郎"},null,null,null,null,null,null,null,null,null,null,null,null,null,null,null,null,"認定番号",null,null,null,null,null,{"$f":"VLOOKUP($DA$5,入力用リスト!$A$3:$AJ$303,10,FALSE)&\"\"","v":"90000000"},null,null,null,null,null,null,null,null,null,null,null,null,null,null,null,null,null,null,null,null,null,null,null,null,null,null,null,null,null,null,null,null,null,null,null,null,null,null,null,null,null,null,null,null,null,null,{"$f":"VLOOKUP($DA$5,入力用リスト!$A$3:$AJ$303,12,FALSE)&\"\"","v":"2022"},null,null,null,"年",null,{"$f":"VLOOKUP($DA$5,入力用リスト!$A$3:$AJ$303,21,FALSE)&\"\"","v":"5"},null,"月分",null,{"$f":"VLOOKUP($DA$5,入力用リスト!$A$3:$AJ$303,27,FALSE)","v":6000},null,null,null,null,null,null,"円",null,{"$f":"IF($BT$86=\"○\",\"(\"&VLOOKUP($DA$5,入力用リスト!$A$3:$AJ$303,26,FALSE)&\"日)\",\"\")","v":"(10日)"}]
[null,null,null,null,null,null,null,null,null,null,null,null,null,null,null,null,null,null,null,null,null,null,null,null,null,null,"生年月日",null,null,null,null,null,{"$f":"VLOOKUP($DA$5,入力用リスト!$A$3:$AJ$303,11,FALSE)&\"\"","v":"2018年9月1日"}]
[null,null,null,null,null,null,null,null,null,null,null,null,null,null,null,null,null,null,null,null,null,null,null,null,null,null,null,null,null,null,null,null,null,null,null,null,null,null,null,null,null,null,null,null,null,null,null,null,null,null,null,null,null,null,null,null,null,null,null,null,null,null,null,null,null,null,null,null,null,null,null,null,null,null,null,null,null,null,null,{"$f":"VLOOKUP($DA$5,入力用リスト!$A$3:$AJ$303,12,FALSE)&\"\"","v":"2022"},null,null,null,"年",null,{"$f":"VLOOKUP($DA$5,入力用リスト!$A$3:$AJ$303,29,FALSE)&\"\"","v":"6"},null,"月分",null,{"$f":"VLOOKUP($DA$5,入力用リスト!$A$3:$AJ$303,35,FALSE)","v":7200},null,null,null,null,null,null,"円",null,{"$f":"IF($BT$86=\"○\",\"(\"&VLOOKUP($DA$5,入力用リスト!$A$3:$AJ$303,34,FALSE)&\"日)\",\"\")","v":"(12日)"}]
[null,"3．請求期間における在籍する施設について記入"]
[null,"施設種別",null,null,null,null,null,null,null,null,"施設名称",null,null,null,null,null,null,null,null,null,null,null,null,null,null,null,null,null,null,null,null,"幼稚園・認定こども園所在地",null,null,null,null,null,null,null,null,null,null,null,null,null,null,null,null,null,null,null,null,null,null,null,"⇒在籍する幼稚園の「預かり保育事業」に係る施設等利用費を請求する場合は裏面4-1へ"]
[null,{"$f":"IF(施設情報!$C$2<>0,施設情報!$C$2,\"\")","v":"認定こども園"},null,null,null,null,null,null,null,null,"ﾌﾘｶﾞﾅ:",null,null,null,null,null,null,null,null,null,null,null,null,null,null,null,null,null,null,null,null,"〒",null,{"$f":"IF(施設情報!$C$2<>0,施設情報!$C$5,\"\")","v":"650-8570"},null,null,null,null,null,null,null,null,"電話:",null,null,{"$f":"IF(施設情報!$C$2<>0,施設情報!$C$6,\"\")","v":"078-331-8181"}]
[null,null,null,null,null,null,null,null,null,null,{"$f":"IF(施設情報!$C$2<>0,施設情報!$C$8,\"\")","v":"幼保事業課認定こども園"},null,null,null,null,null,null,null,null,null,null,null,null,null,null,null,null,null,null,null,null,{"$f":"IF(施設情報!$C$2<>0,施設情報!$C$4,\"\")","v":"神戸市中央区加納町6－5－1"}]
[null,null,null,null,null,null,null,null,null,null,null,null,null,null,null,null,null,null,null,null,null,null,null,null,null,null,null,null,null,null,null,null,null,null,null,null,null,null,null,null,null,null,null,null,null,null,null,null,null,null,null,null,null,null,null,null,null,null,null,null,null,null,null,null,null,null,null,null,null,null,null,null,"【特定子ども・子育て支援利用料の内訳】"]
[]
[null,"施設・事業区分",null,null,null,null,null,null,null,null,null,null,null,null,"施設・事業名称",null,null,null,null,null,null,null,null,null,null,null,null,null,null,null,null,null,null,null,null,null,null,null,null,null,"施設等所在地",null,null,null,null,null,null,null,null,null,null,null,null,null,null,null,null,null,null,null,null,null,null,null,null,null,null,null,null,null,null,null,null,{"$f":"VLOOKUP($DA$5,入力用リスト!$A$3:$AJ$303,13,FALSE)&\"\"","v":"4"},null,"月分の利用料(保育料)として",null,null,null,null,null,null,null,null,null,null,{"$f":"VLOOKUP($DA$5,入力用リスト!$A$3:$AJ$303,19,FALSE)","v":6000},null,null,null,null,null,null,"円"]
[null,"①",null,{"$f":"IF(施設情報!$L$2<>0,施設情報!$L$2,\"\")","v":""},null,null,null,null,null,null,null,null,null,null,"ﾌﾘｶﾞﾅ:",null,null,null,null,null,null,null,null,null,null,null,null,null,null,null,null,null,null,null,null,null,null,null,null,null,"〒",null,{"$f":"IF(施設情報!$L$2<>0,施設情報!$L$5,\"\")","v":""},null,null,null,null,null,null,null,null,"電話:",null,null,null,{"$f":"IF(施設情報!$L$2<>0,施設情報!$L$6,\"\")","v":""}]
[null,null,null,null,null,null,null,null,null,null,null,null,null,null,{"$f":"IF(施設情報!$L$2<>0,施設情報!$L$8,\"\")","v":""},null,null,null,null,null,null,null,null,null,null,null,null,null,null,null,null,null,null,null,null,null,null,null,null,null,{"$f":"IF(施設情報!$L$2<>0,施設情報!$L$4,\"\")","v":""},null,null,null,null,null,null,null,null,null,null,null,null,null,null,null,null,null,null,null,null,null,null,null,null,null,null,null,null,null,null,null,null,{"$f":"VLOOKUP($DA$5,入力用リスト!$A$3:$AJ$303,21,FALSE)&\"\"","v":"5"},null,"月分の利用料(保育料)として",null,null,null,null,null,null,null,null,null,null,{"$f":"VLOOKUP($DA$5,入力用リスト!$A$3:$AJ$303,27,FALSE)","v":6000},null,null,null,null,null,null,"円",null,null,null,"①"]
[]
[null,null,null,null,null,null,null,null,null,null,null,null,null,null,null,null,null,null,null,null,null,null,null,null,null,null,null,null,null,null,null,null,null,null,null,null,null,null,null,null,null,null,null,null,null,null,null,null,null,null,null,null,null,null,null,null,null,null,null,null,null,null,null,null,null,null,null,null,null,null,null,null,null,{"$f":"VLOOKUP($DA$5,入力用リスト!$A$3:$AJ$303,29,FALSE)&\"\"","v":"6"},null,"月分の利用料(保育料)として",null,null,null,null,null,null,null,null,null,null,{"$f":"VLOOKUP($DA$5,入力用リスト!$A$3:$AJ$303,35,FALSE)","v":7200},null,null,null,null,null,null,"円"]
[null,"②",null,null,null,null,null,null,null,null,null,null,null,null,"ﾌﾘｶﾞﾅ:",null,null,null,null,null,null,null,null,null,null,null,null,null,null,null,null,null,null,null,null,null,null,null,null,null,"〒",null,null,null,null,null,null,null,null,null,null,"電話:"]
[]
[]
[null,null,null,null,null,null,null,null,null,null,null,null,null,null,null,null,null,null,null,null,null,null,null,null,null,null,null,null,null,null,null,null,null,null,null,null,null,null,null,null,null,null,null,null,null,null,null,null,null,null,null,null,null,null,null,null,null,null,null,null,null,null,null,null,null,null,null,null,null,null,null,null,"【特定子ども・子育て支援利用料以外の領収金額】"]
[null,"③",null,null,null,null,null,null,null,null,null,null,null,null,"ﾌﾘｶﾞﾅ:",null,null,null,null,null,null,null,null,null,null,null,null,null,null,null,null,null,null,null,null,null,null,null,null,null,"〒",null,null,null,null,null,null,null,null,null,null,"電話:",null,null,null,null,null,null,null,null,null,null,null,null,null,null,null,null,null,null,null,null,null,{"$f":"VLOOKUP($DA$5,入力用リスト!$A$3:$AJ$303,13,FALSE)&\"\"","v":"4"},null,"月分の日用品、文房具、行事参加費、食材料費、通園送迎費等として",null,null,null,null,null,null,null,null,null,null,null,null,null,null,null,null,null,null,{"$f":"VLOOKUP($DA$5,入力用リスト!$A$3:$AJ$303,20,FALSE)","v":500},null,null,null,null,"円"]
[]
[null,null,null,null,null,null,null,null,null,null,null,null,null,null,null,null,null,null,null,null,null,null,null,null,null,null,null,null,null,null,null,null,null,null,null,null,null,null,null,null,null,null,null,null,null,null,null,null,null,null,null,null,null,null,null,null,null,null,null,null,null,null,null,null,null,null,null,null,null,null,null,null,null,{"$f":"VLOOKUP($DA$5,入力用リスト!$A$3:$AJ$303,21,FALSE)&\"\"","v":"5"},null,"月分の日用品、文房具、行事参加費、食材料費、通園送迎費等として",null,null,null,null,null,null,null,null,null,null,null,null,null,null,null,null,null,null,{"$f":"VLOOKUP($DA$5,入力用リスト!$A$3:$AJ$303,28,FALSE)","v":500},null,null,null,null,"円"]
[]
[null,"④",null,null,null,null,null,null,null,null,null,null,null,null,"ﾌﾘｶﾞﾅ:",null,null,null,null,null,null,null,null,null,null,null,null,null,null,null,null,null,null,null,null,null,null,null,null,null,"〒",null,null,null,null,null,null,null,null,null,null,"電話:",null,null,null,null,null,null,null,null,null,null,null,null,null,null,null,null,null,null,null,null,null,{"$f":"VLOOKUP($DA$5,入力用リスト!$A$3:$AJ$303,29,FALSE)&\"\"","v":"6"},null,"月分の日用品、文房具、行事参加費、食材料費、通園送迎費等として",null,null,null,null,null,null,null,null,null,null,null,null,null,null,null,null,null,null,{"$f":"VLOOKUP($DA$5,入力用リスト!$A$3:$AJ$303,36,FALSE)","v":600},null,null,null,null,"円"]
[]
[]
[]
[null,"⑤",null,null,null,null,null,null,null,null,null,null,null,null,"ﾌﾘｶﾞﾅ:",null,null,null,null,null,null,null,null,null,null,null,null,null,null,null,null,null,null,null,null,null,null,null,null,null,"〒",null,null,null,null,null,null,null,null,null,null,"電話:",null,null,null,null,null,null,null,null,null,null,null,null,null,null,null,null,null,null,null,"※","無償化の対象となるのは、上記①の「特定子ども・子育て支援利用料」です。"]
[null,null,null,null,null,null,null,null,null,null,null,null,null,null,null,null,null,null,null,null,null,null,null,null,null,null,null,null,null,null,null,null,null,null,null,null,null,null,null,null,null,null,null,null,null,null,null,null,null,null,null,null,null,null,null,null,null,null,null,null,null,null,null,null,null,null,null,null,null,null,null,"※","特定子ども・子育て支援利用料以外の経費（日用品、文房具、行事参加費、食材料費、通園送迎費等）は、\n無償化の対象外です。"]
[]
[null,null,null,null,null,null,null,null,null,null,null,null,null,null,null,null,null,null,null,null,null,null,null,null,null,null,null,null,null,null,null,null,null,null,null,null,null,null,null,null,null,null,null,null,null,null,null,null,null,null,null,null,null,null,null,null,null,null,null,null,null,null,null,null,null,null,null,null,null,null,null,"※","認可外の居宅訪問型保育事業や子育て援助活動支援事業について、送迎のみの利用は対象外です。"]
[null,"⇒認可外保育施設等の施設等利用費を請求する場合は裏面4-2へ"]
[]
[null,"※無償化の対象施設は神戸市のホームページで確認できます。下記二次元バーコードを読み取れば、確認できるページに移ります。"]
[]
[null,null,"無償化対象施設一覧⇒",null,null,null,null,null,null,null,null,null,null,null,null,null,null,null,null,null,null,null,null,null,null,null,null,null,null,null,null,null,null,null,null,null,null,null,null,null,null,null,null,null,null,null,"＜裏面も記入して下さい＞",null,null,null,null,null,null,null,null,null,null,null,null,null,null,null,null,null,null,null,null,null,null,null,null,null,null,null,null,null,null,null,null,null,null,null,null,null,null,null,null,null,null,null,null,null,"＜裏面も記入して下さい＞"]
[]
[null,"4-1．幼稚園・認定こども園の預かり保育事業を利用の場合はこちらに記入\n　　（月額上限　第２号:11,300円　第３号:16,300円）"]
[null,"利用年月",null,null,null,null,null,null,null,null,null,null,"在籍園の預かり保育事業",null,null,null,null,null,null,null,null,null,null,null,null,null,null,null,null,null,null,null,null,null,null,null,null,null,null,null,null,null,null,null,null,null,null,"認可外保育施設等に支払った\n月額利用料の合計(d) ※3\n\n(下記※5に該当する場合のみ記入)",null,null,null,null,null,null,null,null,null,"請求額　※4\n\n(「ｃ+ｄ」か月額上限額の低い方を記入)"]
[null,null,null,null,null,null,null,null,null,null,null,null,"園に支払った月額利用料(a)\n※3",null,null,null,null,null,null,null,null,null,"利用\n日数",null,null,null,null,"対象額(b)\n\n(450×利用日数)",null,null,null,null,null,null,null,null,null,"aとbの金額の\n低い方を記入\n(ｃ)"]
[]
[]
[null,null,null,null,null,null,null,null,null,null,null,null,null,null,null,null,null,null,null,null,null,null,null,null,null,null,null,null,null,null,null,null,null,null,null,null,null,null,null,null,null,null,null,null,null,null,null,null,null,null,null,null,null,null,null,null,null,null,null,null,null,null,null,null,null,null,null,null,null,null,null,null,"認定\nこども",null,null,"ﾌﾘｶﾞﾅ",null,{"$f":"VLOOKUP($DA$5,入力用リスト!$A$3:$AJ$303,8,FALSE)&\"\"","v":"ヒョウゴ　ジロウ"}]
[null,{"$f":"IF($B$34<>\"\",VLOOKUP($DA$5,入力用リスト!$A$3:$AJ$303,12,FALSE)&\"\",\"\")","v":"2022"},null,null,null,"年",null,{"$f":"IF($B$34<>\"\",VLOOKUP($DA$5,入力用リスト!$A$3:$AJ$303,13,FALSE)&\"\",\"\")","v":"4"},null,null,"月",null,{"$f":"IF($B$34<>\"\",VLOOKUP($DA$5,入力用リスト!$A$3:$AJ$303,19,FALSE),\"\")","v":6000},null,null,null,null,null,null,null,"円",null,{"$f":"IF($B$34<>\"\",VLOOKUP($DA$5,入力用リスト!$A$3:$AJ$303,18,FALSE),\"\")","v":10},null,null,"日",null,{"$f":"IF(W71=\"\",\"\",IF(450*W71=0,\"\",450*W71))","v":4500},null,null,null,null,null,null,null,"円",null,{"$f":"IF(AND(M71<>\"\",AB71<>\"\"),IF(M71>=AB71,AB71,M71),\"\")","v":4500},null,null,null,null,null,null,null,"円",null,null,null,null,null,null,null,null,null,"円",null,{"$f":"IFERROR(IF($AQ$28=\"第2号\",IF((AL71+AV71)>=11300,11300,AL71+AV71),IF($AQ$28=\"第3号\",IF((AL71+AV71)>=16300,16300,AL71+AV71))),\"\")","v":4500},null,null,null,null,null,null,null,"円",null,null,null,null,null,null,null,null,null,"氏名",null,{"$f":"VLOOKUP($DA$5,入力用リスト!$A$3:$AJ$303,7,FALSE)&\"\"","v":"兵庫　次郎"}]
[null,{"$f":"IF($B$34<>\"\",VLOOKUP($DA$5,入力用リスト!$A$3:$AJ$303,12,FALSE)&\"\",\"\")","v":"2022"},null,null,null,"年",null,{"$f":"IF($B$34<>\"\",VLOOKUP($DA$5,入力用リスト!$A$3:$AJ$303,21,FALSE)&\"\",\"\")","v":"5"},null,null,"月",null,{"$f":"IF($B$34<>\"\",VLOOKUP($DA$5,入力用リスト!$A$3:$AJ$303,27,FALSE),\"\")","v":6000},null,null,null,null,null,null,null,"円",null,{"$f":"IF($B$34<>\"\",VLOOKUP($DA$5,入力用リスト!$A$3:$AJ$303,26,FALSE),\"\")","v":10},null,null,"日",null,{"$f":"IF(W72=\"\",\"\",IF(450*W72=0,\"\",450*W72))","v":4500},null,null,null,null,null,null,null,"円",null,{"$f":"IF(AND(M72<>\"\",AB72<>\"\"),IF(M72>=AB72,AB72,M72),\"\")","v":4500},null,null,null,null,null,null,null,"円",null,null,null,null,null,null,null,null,null,"円",null,{"$f":"IFERROR(IF($AQ$28=\"第2号\",IF((AL72+AV72)>=11300,11300,AL72+AV72),IF($AQ$28=\"第3号\",IF((AL72+AV72)>=16300,16300,AL72+AV72))),\"\")","v":4500},null,null,null,null,null,null,null,"円"]
[null,{"$f":"IF($B$34<>\"\",VLOOKUP($DA$5,入力用リスト!$A$3:$AJ$303,12,FALSE)&\"\",\"\")","v":"2022"},null,null,null,"年",null,{"$f":"IF($B$34<>\"\",VLOOKUP($DA$5,入力用リスト!$A$3:$AJ$303,29,FALSE)&\"\",\"\")","v":"6"},null,null,"月",null,{"$f":"IF($B$34<>\"\",VLOOKUP($DA$5,入力用リスト!$A$3:$AJ$303,35,FALSE),\"\")","v":7200},null,null,null,null,null,null,null,"円",null,{"$f":"IF($B$34<>\"\",VLOOKUP($DA$5,入力用リスト!$A$3:$AJ$303,34,FALSE),\"\")","v":12},null,null,"日",null,{"$f":"IF(W73=\"\",\"\",IF(450*W73=0,\"\",450*W73))","v":5400},null,null,null,null,null,null,null,"円",null,5400,null,null,null,null,null,null,null,"円",null,null,null,null,null,null,null,null,null,"円",null,{"$f":"IFERROR(IF($AQ$28=\"第2号\",IF((AL73+AV73)>=11300,11300,AL73+AV73),IF($AQ$28=\"第3号\",IF((AL73+AV73)>=16300,16300,AL73+AV73))),\"\")","v":5400},null,null,null,null,null,null,null,"円"]
["※3  ",null,null,"上記で記入した利用料を支払ったことを証明する領収証と特定子ども・子育て支援提供証明書を添付して下さい。\nファミリー・サポート・センター事業を利用した場合は、領収証・提供証明書にかえて、援助を行う会員が発行した活動報告書を添付して下さい。"]
[]
["※4  ",null,null,"月額上限額は、施設等利用給付認定種別が「第2号」の場合は「11,300円」、「第3号」の場合は「16,300円」です。\n「ｃ+ｄ」がこれを超える場合は、それぞれの月額上限額を記入して下さい。"]
[null,null,null,null,null,null,null,null,null,null,null,null,null,null,null,null,null,null,null,null,null,null,null,null,null,null,null,null,null,null,null,null,null,null,null,null,null,null,null,null,null,null,null,null,null,null,null,null,null,null,null,null,null,null,null,null,null,null,null,null,null,null,null,null,null,null,null,null,null,null,null,"特定子ども・子育て支援の内容",null,null,null,null,null,"利用月",null,null,"提供した日\n（提供日数※１）",null,null,null,null,null,null,"提供時間帯※２",null,null,null,null,null,null,"費用※３"]
["※5 ",null,null,"在籍園の預かり保育事業が、「教育時間を含む平日の預かり保育の提供時間数が８時間未満又は年間（平日・長期休業中・休日の合計）開所日数200日未満」として確認を受けた園である場合、他の認可外保育施設等の利用についても、無償化（償還払い）の対象となります。"]
[]
[null,null,null,null,null,null,null,null,null,null,null,null,null,null,null,null,null,null,null,null,null,null,null,null,null,null,null,null,null,null,null,null,null,null,null,null,null,null,null,null,null,null,null,null,null,null,null,null,null,null,null,null,null,null,null,null,null,null,null,null,null,null,null,null,null,null,null,null,null,null,null,{"$f":"IF(施設情報!$L$2=\"認可外保育施設\",\"○\",\"\")","v":""},"認可外保育施設",null,null,null,null,{"$f":"IF($BT$80=\"○\",VLOOKUP($DA$5,入力用リスト!$A$3:$AJ$303,13,FALSE)&\"\",\"\")","v":""},null,"月",{"$f":"IF($BT$80=\"○\",VLOOKUP($DA$5,入力用リスト!$A$3:$AJ$303,14,FALSE)&\"\",\"\")","v":""},null,"日","～",{"$f":"IF($BT$80=\"○\",VLOOKUP($DA$5,入力用リスト!$A$3:$AJ$303,15,FALSE)&\"\",\"\")","v":""},null,"日",{"$f":"IF($BT$80=\"○\",VLOOKUP($DA$5,入力用リスト!$A$3:$AJ$303,16,FALSE)&\"\",\"\")","v":""},null,null,"～",{"$f":"IF($BT$80=\"○\",VLOOKUP($DA$5,入力用リスト!$A$3:$AJ$303,17,FALSE)&\"\",\"\")","v":""},null,null,{"$f":"IF($BT$80=\"○\",VLOOKUP($DA$5,入力用リスト!$A$3:$AJ$303,19,FALSE),\"\")","v":""},null,null,null,"円"]
[null,"4-2．認可外保育施設等を主に利用の場合はこちらに記入（月額上限　第２号:37,000円　第３号:42,000円）"]
[null,"利用年月日",null,null,null,null,null,null,null,null,null,null,"施設に支払った\n月額利用料(保育料)の合計額\n(a) ※6 ※7",null,null,null,null,null,null,null,null,null,null,null,null,null,null,null,null,null,null,"月額上限額\n(b) ※8",null,null,null,null,null,null,null,null,null,null,null,null,null,null,null,null,null,null,"請求額\n(aとbを比較して\n小さい方)",null,null,null,null,null,null,null,null,null,null,null,null,null,null,null,null,null,null,null,null,null,null,null,null,null,null,{"$f":"IF($BT$80=\"○\",VLOOKUP($DA$5,入力用リスト!$A$3:$AJ$303,21,FALSE)&\"\",\"\")","v":""},null,"月",{"$f":"IF($BT$80=\"○\",VLOOKUP($DA$5,入力用リスト!$A$3:$AJ$303,22,FALSE)&\"\",\"\")","v":""},null,"日","～",{"$f":"IF($BT$80=\"○\",VLOOKUP($DA$5,入力用リスト!$A$3:$AJ$303,23,FALSE)&\"\",\"\")","v":""},null,"日",{"$f":"IF($BT$80=\"○\",VLOOKUP($DA$5,入力用リスト!$A$3:$AJ$303,24,FALSE)&\"\",\"\")","v":""},null,null,"～",{"$f":"IF($BT$80=\"○\",VLOOKUP($DA$5,入力用リスト!$A$3:$AJ$303,25,FALSE)&\"\",\"\")","v":""},null,null,{"$f":"IF($BT$80=\"○\",VLOOKUP($DA$5,入力用リスト!$A$3:$AJ$303,27,FALSE),\"\")","v":""},null,null,null,"円"]
[]
[null,null,null,null,null,null,null,null,null,null,null,null,null,null,null,null,null,null,null,null,null,null,null,null,null,null,null,null,null,null,null,null,null,null,null,null,null,null,null,null,null,null,null,null,null,null,null,null,null,null,null,null,null,null,null,null,null,null,null,null,null,null,null,null,null,null,null,null,null,null,null,null,null,null,null,null,null,{"$f":"IF($BT$80=\"○\",VLOOKUP($DA$5,入力用リスト!$A$3:$AJ$303,29,FALSE)&\"\",\"\")","v":""},null,"月",{"$f":"IF($BT$80=\"○\",VLOOKUP($DA$5,入力用リスト!$A$3:$AJ$303,30,FALSE)&\"\",\"\")","v":""},null,"日","～",{"$f":"IF($BT$80=\"○\",VLOOKUP($DA$5,入力用リスト!$A$3:$AJ$303,31,FALSE)&\"\",\"\")","v":""},null,"日",{"$f":"IF($BT$80=\"○\",VLOOKUP($DA$5,入力用リスト!$A$3:$AJ$303,32,FALSE)&\"\",\"\")","v":""},null,null,"～",{"$f":"IF($BT$80=\"○\",VLOOKUP($DA$5,入力用リスト!$A$3:$AJ$303,33,FALSE)&\"\",\"\")","v":""},null,null,{"$f":"IF($BT$80=\"○\",VLOOKUP($DA$5,入力用リスト!$A$3:$AJ$303,35,FALSE),\"\")","v":""},null,null,null,"円"]
[null,{"$f":"IF($D$39<>\"\",VLOOKUP($DA$5,入力用リスト!$A$3:$AJ$303,12,FALSE)&\"\",\"\")","v":""},null,null,null,"年",null,{"$f":"IF($D$39<>\"\",VLOOKUP($DA$5,入力用リスト!$A$3:$AJ$303,13,FALSE)&\"\",\"\")","v":""},null,null,"月",null,{"$f":"IF($D$39<>\"\",VLOOKUP($DA$5,入力用リスト!$A$3:$AJ$303,19,FALSE),\"\")","v":""},null,null,null,null,null,null,null,null,null,null,null,null,null,null,null,null,"円",null,{"$f":"IF(M85=\"\",\"\",IF($AQ$28=\"第2号\",37000,IF($AQ$28=\"第3号\",42000,\"\")))","v":""},null,null,null,null,null,null,null,null,null,null,null,null,null,null,null,null,"円",null,{"$f":"IF(M85>=AF85,AF85,M85)","v":""},null,null,null,null,null,null,null,null,null,null,null,null,null,null,"円"]
[null,{"$f":"IF($D$39<>\"\",VLOOKUP($DA$5,入力用リスト!$A$3:$AJ$303,12,FALSE)&\"\",\"\")","v":""},null,null,null,"年",null,{"$f":"IF($D$39<>\"\",VLOOKUP($DA$5,入力用リスト!$A$3:$AJ$303,21,FALSE)&\"\",\"\")","v":""},null,null,"月",null,{"$f":"IF($D$39<>\"\",VLOOKUP($DA$5,入力用リスト!$A$3:$AJ$303,27,FALSE),\"\")","v":""},null,null,null,null,null,null,null,null,null,null,null,null,null,null,null,null,"円",null,{"$f":"IF(M86=\"\",\"\",IF($AQ$28=\"第2号\",37000,IF($AQ$28=\"第3号\",42000,\"\")))","v":""},null,null,null,null,null,null,null,null,null,null,null,null,null,null,null,null,"円",null,{"$f":"IF(M86>=AF86,AF86,M86)","v":""},null,null,null,null,null,null,null,null,null,null,null,null,null,null,"円",null,null,null,null,null,{"$f":"IF(施設情報!$C$2<>\"\",\"○\",\"\")","v":"○"},"預かり保育事業",null,null,null,null,{"$f":"IF($BT$86=\"○\",VLOOKUP($DA$5,入力用リスト!$A$3:$AJ$303,13,FALSE)&\"\",\"\")","v":"4"},null,"月",{"$f":"IF($BT$86=\"○\",VLOOKUP($DA$5,入力用リスト!$A$3:$AJ$303,14,FALSE)&\"\",\"\")","v":"1"},"日","～",{"$f":"IF($BT$86=\"○\",VLOOKUP($DA$5,入力用リスト!$A$3:$AJ$303,15,FALSE)&\"\",\"\")","v":"30"},"日",{"$f":"IF($BT$86=\"○\",\"(\"&VLOOKUP($DA$5,入力用リスト!$A$3:$AJ$303,18,FALSE)&\"日)\",\"\")","v":"(10日)"},null,{"$f":"IF($BT$86=\"○\",VLOOKUP($DA$5,入力用リスト!$A$3:$AJ$303,16,FALSE)&\"\",\"\")","v":"14時"},null,null,"～",{"$f":"IF($BT$86=\"○\",VLOOKUP($DA$5,入力用リスト!$A$3:$AJ$303,17,FALSE)&\"\",\"\")","v":"16時半"},null,null,{"$f":"IF($BT$86=\"○\",VLOOKUP($DA$5,入力用リスト!$A$3:$AJ$303,19,FALSE),\"\")","v":6000},null,null,null,"円"]
[null,{"$f":"IF($D$39<>\"\",VLOOKUP($DA$5,入力用リスト!$A$3:$AJ$303,12,FALSE)&\"\",\"\")","v":""},null,null,null,"年",null,{"$f":"IF($D$39<>\"\",VLOOKUP($DA$5,入力用リスト!$A$3:$AJ$303,29,FALSE)&\"\",\"\")","v":""},null,null,"月",null,{"$f":"IF($D$39<>\"\",VLOOKUP($DA$5,入力用リスト!$A$3:$AJ$303,35,FALSE),\"\")","v":""},null,null,null,null,null,null,null,null,null,null,null,null,null,null,null,null,"円",null,{"$f":"IF(M87=\"\",\"\",IF($AQ$28=\"第2号\",37000,IF($AQ$28=\"第3号\",42000,\"\")))","v":""},null,null,null,null,null,null,null,null,null,null,null,null,null,null,null,null,"円",null,"",null,null,null,null,null,null,null,null,null,null,null,null,null,null,"円"]
[null,"※6",null,null,"上記で記入した利用料を支払ったことを証明する書類（施設からの領収証等）と特定子ども・子育て支援提供証明書をすべて添付して下さい。\nファミリーサポートセンター事業を利用した場合は、領収証・提供証明書にかえて、援助を行う会員が発行した活動報告書を添付して下さい。"]
[null,null,null,null,null,null,null,null,null,null,null,null,null,null,null,null,null,null,null,null,null,null,null,null,null,null,null,null,null,null,null,null,null,null,null,null,null,null,null,null,null,null,null,null,null,null,null,null,null,null,null,null,null,null,null,null,null,null,null,null,null,null,null,null,null,null,null,null,null,null,null,null,null,null,null,null,null,{"$f":"IF($BT$86=\"○\",VLOOKUP($DA$5,入力用リスト!$A$3:$AJ$303,21,FALSE)&\"\",\"\")","v":"5"},null,"月",{"$f":"IF($BT$86=\"○\",VLOOKUP($DA$5,入力用リスト!$A$3:$AJ$303,22,FALSE)&\"\",\"\")","v":"1"},"日","～",{"$f":"IF($BT$86=\"○\",VLOOKUP($DA$5,入力用リスト!$A$3:$AJ$303,23,FALSE)&\"\",\"\")","v":"31"},"日",{"$f":"IF($BT$86=\"○\",\"(\"&VLOOKUP($DA$5,入力用リスト!$A$3:$AJ$303,26,FALSE)&\"日)\",\"\")","v":"(10日)"},null,{"$f":"IF($BT$86=\"○\",VLOOKUP($DA$5,入力用リスト!$A$3:$AJ$303,24,FALSE)&\"\",\"\")","v":"14時"},null,null,"～",{"$f":"IF($BT$86=\"○\",VLOOKUP($DA$5,入力用リスト!$A$3:$AJ$303,25,FALSE)&\"\",\"\")","v":"16時半"},null,null,{"$f":"IF($BT$86=\"○\",VLOOKUP($DA$5,入力用リスト!$A$3:$AJ$303,27,FALSE),\"\")","v":6000},null,null,null,"円"]
[]
[null,"※7",null,null,"利用料の設定が月単位を超える（四半期、前期・後期など）場合は、当該利用料を当該期間の月数で除して、利用料の月額相当分を算定して下さい。",null,null,null,null,null,null,null,null,null,null,null,null,null,null,null,null,null,null,null,null,null,null,null,null,null,null,null,null,null,null,null,null,null,null,null,null,null,null,null,null,null,null,null,null,null,null,null,null,null,null,null,null,null,null,null,null,null,null,null,null,null,null,null,null,null,null,null,null,null,null,null,null,{"$f":"IF($BT$86=\"○\",VLOOKUP($DA$5,入力用リスト!$A$3:$AJ$303,29,FALSE)&\"\",\"\")","v":"6"},null,"月",{"$f":"IF($BT$86=\"○\",VLOOKUP($DA$5,入力用リスト!$A$3:$AJ$303,30,FALSE)&\"\",\"\")","v":"1"},"日","～",{"$f":"IF($BT$86=\"○\",VLOOKUP($DA$5,入力用リスト!$A$3:$AJ$303,31,FALSE)&\"\",\"\")","v":"30"},"日",{"$f":"IF($BT$86=\"○\",\"(\"&VLOOKUP($DA$5,入力用リスト!$A$3:$AJ$303,34,FALSE)&\"日)\",\"\")","v":"(12日)"},null,{"$f":"IF($BT$86=\"○\",VLOOKUP($DA$5,入力用リスト!$A$3:$AJ$303,32,FALSE)&\"\",\"\")","v":"14時"},null,null,"～",{"$f":"IF($BT$86=\"○\",VLOOKUP($DA$5,入力用リスト!$A$3:$AJ$303,33,FALSE)&\"\",\"\")","v":"16時半"},null,null,{"$f":"IF($BT$86=\"○\",VLOOKUP($DA$5,入力用リスト!$A$3:$AJ$303,35,FALSE),\"\")","v":7200},null,null,null,"円"]
[]
[null,"※8",null,null,"【月額上限額について】\n①月額上限額は以下のとおりです。\n　　施設等利用給付第２号認定・・・月額37,000円\n　　施設等利用給付第３号認定・・・月額42,000円\n②月途中で認定期間が終了または開始する場合や、市町村間の転出入の場合は、以下のとおりとなります。\n　＜月途中で認定期間が終了、または他の市町村へ転出する場合＞\n　　上記①の限度額×認定期間終了（転出日）までの日数÷その月の日数\n　＜月途中で認定期間が開始、または他の市町村から転入する場合＞\n　　上記①の限度額×（転入先での）認定開始からの日数÷その月の日数\n　\n"]
[null,null,null,null,null,null,null,null,null,null,null,null,null,null,null,null,null,null,null,null,null,null,null,null,null,null,null,null,null,null,null,null,null,null,null,null,null,null,null,null,null,null,null,null,null,null,null,null,null,null,null,null,null,null,null,null,null,null,null,null,null,null,null,null,null,null,null,null,null,null,null,{"$f":"IF(施設情報!$L$2=\"一時預かり事業\",\"○\",\"\")","v":""},"一時預かり事業",null,null,null,null,{"$f":"IF($BT$94=\"○\",VLOOKUP($DA$5,入力用リスト!$A$3:$AJ$303,13,FALSE)&\"\",\"\")","v":""},null,"月",{"$f":"IF($BT$94=\"○\",VLOOKUP($DA$5,入力用リスト!$A$3:$AJ$303,14,FALSE)&\"\",\"\")","v":""},null,"日","～",{"$f":"IF($BT$94=\"○\",VLOOKUP($DA$5,入力用リスト!$A$3:$AJ$303,15,FALSE)&\"\",\"\")","v":""},null,"日",{"$f":"IF($BT$94=\"○\",VLOOKUP($DA$5,入力用リスト!$A$3:$AJ$303,16,FALSE)&\"\",\"\")","v":""},null,null,"～",{"$f":"IF($BT$94=\"○\",VLOOKUP($DA$5,入力用リスト!$A$3:$AJ$303,17,FALSE)&\"\",\"\")","v":""},null,null,{"$f":"IF($BT$94=\"○\",VLOOKUP($DA$5,入力用リスト!$A$3:$AJ$303,19,FALSE),\"\")","v":""},null,null,null,"円"]
[]
[null,null,null,null,null,null,null,null,null,null,null,null,null,null,null,null,null,null,null,null,null,null,null,null,null,null,null,null,null,null,null,null,null,null,null,null,null,null,null,null,null,null,null,null,null,null,null,null,null,null,null,null,null,null,null,null,null,null,null,null,null,null,null,null,null,null,null,null,null,null,null,null,null,null,null,null,null,{"$f":"IF($BT$94=\"○\",VLOOKUP($DA$5,入力用リスト!$A$3:$AJ$303,21,FALSE)&\"\",\"\")","v":""},null,"月",{"$f":"IF($BT$94=\"○\",VLOOKUP($DA$5,入力用リスト!$A$3:$AJ$303,22,FALSE)&\"\",\"\")","v":""},null,"日","～",{"$f":"IF($BT$94=\"○\",VLOOKUP($DA$5,入力用リスト!$A$3:$AJ$303,23,FALSE)&\"\",\"\")","v":""},null,"日",{"$f":"IF($BT$94=\"○\",VLOOKUP($DA$5,入力用リスト!$A$3:$AJ$303,24,FALSE)&\"\",\"\")","v":""},null,null,"～",{"$f":"IF($BT$94=\"○\",VLOOKUP($DA$5,入力用リスト!$A$3:$AJ$303,25,FALSE)&\"\",\"\")","v":""},null,null,{"$f":"IF($BT$94=\"○\",VLOOKUP($DA$5,入力用リスト!$A$3:$AJ$303,27,FALSE),\"\")","v":""},null,null,null,"円"]
[]
[null,null,null,null,null,null,null,null,null,null,null,null,null,null,null,null,null,null,null,null,null,null,null,null,null,null,null,null,null,null,null,null,null,null,null,null,null,null,null,null,null,null,null,null,null,null,null,null,null,null,null,null,null,null,null,null,null,null,null,null,null,null,null,null,null,null,null,null,null,null,null,null,null,null,null,null,null,{"$f":"IF($BT$94=\"○\",VLOOKUP($DA$5,入力用リスト!$A$3:$AJ$303,29,FALSE)&\"\",\"\")","v":""},null,"月",{"$f":"IF($BT$94=\"○\",VLOOKUP($DA$5,入力用リスト!$A$3:$AJ$303,30,FALSE)&\"\",\"\")","v":""},null,"日","～",{"$f":"IF($BT$94=\"○\",VLOOKUP($DA$5,入力用リスト!$A$3:$AJ$303,31,FALSE)&\"\",\"\")","v":""},null,"日",{"$f":"IF($BT$94=\"○\",VLOOKUP($DA$5,入力用リスト!$A$3:$AJ$303,32,FALSE)&\"\",\"\")","v":""},null,null,"～",{"$f":"IF($BT$94=\"○\",VLOOKUP($DA$5,入力用リスト!$A$3:$AJ$303,33,FALSE)&\"\",\"\")","v":""},null,null,{"$f":"IF($BT$94=\"○\",VLOOKUP($DA$5,入力用リスト!$A$3:$AJ$303,35,FALSE),\"\")","v":""},null,null,null,"円"]
[null,"【注意事項】"]
[null,1,null,"利用料を支払ったことを証明する書類（領収証等）はコピーの提出可ですが、\n特定子ども・子育て支援提供証明書は原本の提出が必要です。\n領収証と提供証明書を統合した「特定子ども・子育て支援に係る領収証兼提供証明書」の場合は、原本の提出が必要です。\nファミリー・サポート・センター事業を利用した場合の活動報告書は原本の提出が必要です。\n※なお、書類の記載内容等の確認のため、ご利用の施設に連絡させていただく場合がございます。",null,null,null,null,null,null,null,null,null,null,null,null,null,null,null,null,null,null,null,null,null,null,null,null,null,null,null,null,null,null,null,null,null,null,null,null,null,null,null,null,null,null,null,null,null,null,null,null,null,null,null,null,null,null,null,null,null,null,null,null,null,null,null,null,null,null,null,{"$f":"IF(施設情報!$L$2=\"病児保育事業\",\"○\",\"\")","v":""},"病児保育事業",null,null,null,null,{"$f":"IF($BT$100=\"○\",VLOOKUP($DA$5,入力用リスト!$A$3:$AJ$303,13,FALSE)&\"\",\"\")","v":""},null,"月",{"$f":"IF($BT$100=\"○\",VLOOKUP($DA$5,入力用リスト!$A$3:$AJ$303,14,FALSE)&\"\",\"\")","v":""},null,"日","～",{"$f":"IF($BT$100=\"○\",VLOOKUP($DA$5,入力用リスト!$A$3:$AJ$303,15,FALSE)&\"\",\"\")","v":""},null,"日",{"$f":"IF($BT$100=\"○\",VLOOKUP($DA$5,入力用リスト!$A$3:$AJ$303,16,FALSE)&\"\",\"\")","v":""},null,null,"～",{"$f":"IF($BT$100=\"○\",VLOOKUP($DA$5,入力用リスト!$A$3:$AJ$303,17,FALSE)&\"\",\"\")","v":""},null,null,{"$f":"IF($BT$100=\"○\",VLOOKUP($DA$5,入力用リスト!$A$3:$AJ$303,19,FALSE)&\"\",\"\")","v":""},null,null,null,"円"]
[null,null,null,null,null,null,null,null,null,null,null,null,null,null,null,null,null,null,null,null,null,null,null,null,null,null,null,null,null,null,null,null,null,null,null,null,null,null,null,null,null,null,null,null,null,null,null,null,null,null,null,null,null,null,null,null,null,null,null,null,null,null,null,null,null,null,null,null,null,null,null,null,null,null,null,null,null,{"$f":"IF($BT$100=\"○\",VLOOKUP($DA$5,入力用リスト!$A$3:$AJ$303,21,FALSE)&\"\",\"\")","v":""},null,"月",{"$f":"IF($BT$100=\"○\",VLOOKUP($DA$5,入力用リスト!$A$3:$AJ$303,22,FALSE)&\"\",\"\")","v":""},null,"日","～",{"$f":"IF($BT$100=\"○\",VLOOKUP($DA$5,入力用リスト!$A$3:$AJ$303,23,FALSE)&\"\",\"\")","v":""},null,"日",{"$f":"IF($BT$100=\"○\",VLOOKUP($DA$5,入力用リスト!$A$3:$AJ$303,24,FALSE)&\"\",\"\")","v":""},null,null,"～",{"$f":"IF($BT$100=\"○\",VLOOKUP($DA$5,入力用リスト!$A$3:$AJ$303,25,FALSE)&\"\",\"\")","v":""},null,null,{"$f":"IF($BT$100=\"○\",VLOOKUP($DA$5,入力用リスト!$A$3:$AJ$303,27,FALSE)&\"\",\"\")","v":""},null,null,null,"円"]
[null,2,null,"提出先は、神戸市行政事務センターへお願いします。\n〒650-8526 神戸市中央区伊藤町 111 番地\n神戸商工中金ビル４階\n行政事務センター「幼児無償化担当」宛"]
[null,null,null,null,null,null,null,null,null,null,null,null,null,null,null,null,null,null,null,null,null,null,null,null,null,null,null,null,null,null,null,null,null,null,null,null,null,null,null,null,null,null,null,null,null,null,null,null,null,null,null,null,null,null,null,null,null,null,null,null,null,null,null,null,null,null,null,null,null,null,null,null,null,null,null,null,null,{"$f":"IF($BT$100=\"○\",VLOOKUP($DA$5,入力用リスト!$A$3:$AJ$303,29,FALSE)&\"\",\"\")","v":""},null,"月",{"$f":"IF($BT$100=\"○\",VLOOKUP($DA$5,入力用リスト!$A$3:$AJ$303,30,FALSE)&\"\",\"\")","v":""},null,"日","～",{"$f":"IF($BT$100=\"○\",VLOOKUP($DA$5,入力用リスト!$A$3:$AJ$303,31,FALSE)&\"\",\"\")","v":""},null,"日",{"$f":"IF($BT$100=\"○\",VLOOKUP($DA$5,入力用リスト!$A$3:$AJ$303,32,FALSE)&\"\",\"\")","v":""},null,null,"～",{"$f":"IF($BT$100=\"○\",VLOOKUP($DA$5,入力用リスト!$A$3:$AJ$303,33,FALSE)&\"\",\"\")","v":""},null,null,{"$f":"IF($BT$100=\"○\",VLOOKUP($DA$5,入力用リスト!$A$3:$AJ$303,35,FALSE)&\"\",\"\")","v":""},null,null,null,"円"]
[null,3,null,"提出された書類等に基づき、請求内容を審査のうえ給付額を決定し、給付決定通知書を送付します。\n市による審査の結果、請求額と給付額（振込額）が異なることがありますので、給付決定通知書をご確認ください。\n"]
[]
[null,4,null,"提出された書類等に不備がある場合は、支払時期が遅れる場合がございますので、予めご了承ください。",null,null,null,null,null,null,null,null,null,null,null,null,null,null,null,null,null,null,null,null,null,null,null,null,null,null,null,null,null,null,null,null,null,null,null,null,null,null,null,null,null,null,null,null,null,null,null,null,null,null,null,null,null,null,null,null,null,null,null,null,null,null,null,null,null,null,null,"※１　提供日数は、預かり保育事業のみ記載。"]
[null,null,null,null,null,null,null,null,null,null,null,null,null,null,null,null,null,null,null,null,null,null,null,null,null,null,null,null,null,null,null,null,null,null,null,null,null,null,null,null,null,null,null,null,null,null,null,null,null,null,null,null,null,null,null,null,null,null,null,null,null,null,null,null,null,null,null,null,null,null,null,"※２　提供時間帯は、標準的な利用時間帯の記入でも可。"]
[null,null,null,null,null,null,null,"委任状（請求者名義と異なる振込先を指定する場合に使用）",null,null,null,null,null,null,null,null,null,null,null,null,null,null,null,null,null,null,null,null,null,null,null,null,null,null,null,null,null,null,null,null,null,null,null,null,null,null,null,null,null,null,null,null,null,null,null,null,null,null,null,null,null,null,null,null,null,null,null,null,null,null,null,"※３　費用は特定子ども・子育て支援利用料（上記①）の額を記入。"]
[null,null,null,null,null,null,null,null,null,null,null,null,null,null,null,null,null,null,null,null,null,null,null,null,null,null,null,null,null,null,null,null,null,null,null,null,null,null,null,null,null,null,null,null,"年　　　月　　　日"]
[null,null,"私は、右のものに施設等利用費の受領を委任します"]
[]
[null,null,"委任者（請求者）",null,null,null,null,null,null,null,null,null,null,null,null,null,null,null,null,null,null,null,null,null,null,null,null,null,null,null,null,null,null,null,null,"受任者（振込口座名義人）"]
[]
[null,null,"住所",null,null,null,null,null,null,null,null,null,null,null,null,null,null,null,null,null,null,null,null,null,null,null,null,null,null,null,null,null,null,null,null,"住所"]
[]
[null,null,"氏名",null,null,null,null,null,null,null,null,null,null,null,null,null,null,null,null,null,null,null,null,null,null,null,null,null,null,null,null,"印",null,null,null,"氏名",null,null,null,null,null,null,null,null,null,null,null,null,null,null,null,null,null,null,null,null,null,null,null,null,null,null,null,"印"]
[]
[null,null,"生年月日",null,null,null,null,"　　　　　年　　　　　月　　　　　日",null,null,null,null,null,null,null,null,null,null,null,null,null,null,null,null,null,null,null,null,null,null,null,null,null,null,null,"生年月日",null,null,null,null,"　　　　　年　　　　月　　　　　日"]